Workbook

Sheet Keplerellipse
B1: Elliptisk bevægelse
B2: HN, 2011-05-24 og 2015-07-09
A4: Baneelementer
A5: Halve storakse | C5: a = | D5: =(H5-E5)/200*F5+E5 -> 1.32 | E5: 1 | F5: 64 | H5: 2
A6: Ekscentricitet | C6: e = | D6: =(H6-E6)/300*F6+E6 -> 0.3 | E6: 0 | F6: 300 | H6: 0.3
A7: Perihellængde | C7: Π = | D7: =(H7-E7)/360*F7+E7 -> 0 | E7: 0 | F7: 0 | H7: 360
A8: Periheltid | C8: T = | D8: 0
A10: Hjælpestørrelser
A11: Periode | C11: P = | D11: =D5^(3/2) -> 1.516564539
A12: Middelbevægelse | C12: μ = | D12: =2*PI()/D11 -> 4.143038524
C13: sqrt(1-e2) | D13: =SQRT(1-D6*D6) -> 0.9539392014
C14: cos(Π) = | D14: =COS(RADIANS(D7)) -> 1
C15: sin(Π) = | D15: =SIN(RADIANS(D7)) -> 0
A17: Solen | C17: 0 | D17: 0
A18: Apsidelinje | C18: =D$5*(1-$D$6)*D14 -> 0.924 | D18: =D$5*(1-$D$6)*D15 -> 0
C19: =-D$5*(1+$D$6)*D14 -> -1.716 | D19: =-D$5*(1+$D$6)*D15 -> 0
A21: Løbende punkt
C22: 147
A24: Tidspunkt | B24: =C22/360*$D$11 -> 0.6192638533 | C24: =D$12*(B24-D$8) -> 2.565634 | D24: =kepler($D$6,C24) -> 2.695159347 | E24: =COS(D24) -> -0.9019927604 | F24: =SIN(D24) -> 0.4317511555 | G24: =1-D$6*E24 -> 1.270597828 | H24: =(E24-D$6)/G24 -> -0.9460056784 | I24: =D$13*F24/G24 -> 0.3241500523 | J24: =D$5*G24 -> 1.677189133 | K24: =J24*(H24*D$14-I24*D$15) -> -1.586630444 | L24: =J24*(I24*D$14+H24*D$15) -> 0.5436609452
K25: 0 | L25: 0
A26: Løbende indeks | B26: Tids-punkt | C26: Middel-anomali | D26: Ekscentrisk anomali E | G26: Sand anomali A | J26: Position i banen
A27: i | B27: t | C27: M | D27: E | E27: cos(E) | F27: sin(E) | G27: 1-e*cos(E) | H27: cos(A) | I27: sin(A) | J27: r | K27: x | L27: y
A28: 0 | B28: =A28/100*D$11 -> 0 | C28: =D$12*(B28-D$8) -> 0 | D28: =kepler($D$6,C28) -> 0 | E28: =COS(D28) -> 1 | F28: =SIN(D28) -> 0 | G28: =1-D$6*E28 -> 0.7 | H28: =(E28-D$6)/G28 -> 1 | I28: =D$13*F28/G28 -> 0 | J28: =D$5*G28 -> 0.924 | K28: =J28*(H28*D$14-I28*D$15) -> 0.924 | L28: =J28*(I28*D$14+H28*D$15) -> 0 | Q28: =kepler($D$6,C28) -> 0
A29: 1 | B29: =A29/100*D$11 -> 0.01516564539 | C29: =D$12*(B29-D$8) -> 0.06283185307 | D29: =kepler($D$6,C29) -> 0.08970824418 | E29: 0.9959789132 | F29: 0.08958797037 | G29: 0.701206326 | H29: 0.9925451146 | I29: 0.1218777894 | J29: 0.9255923504 | K29: 0.9186921654 | L29: 0.1128091495 | Q29: =kepler($D$6,C29) -> 0.08970824418
A30: 2 | B30: 0.03033129077 | C30: 0.1256637061 | D30: =kepler($D$6,C30) -> 0.1791098165 | E30: 0.9840026721 | F30: 0.1781537012 | G30: 0.7047991984 | H30: 0.9704929769 | I30: 0.2411293881 | J30: 0.9303349418 | K30: 0.9028835272 | L30: 0.2243310953 | Q30: 0.1791098165
A31: 3 | B31: 0.04549693616 | C31: 0.1884955592 | D31: =kepler($D$6,C31) -> 0.2679107479 | E31: 0.9643260618 | F31: 0.2647172957 | G31: 0.7107021815 | H31: 0.9347460569 | I31: 0.3553164915 | J31: 0.9381268795 | K31: 0.8769104015 | L31: 0.3333319514 | Q31: 0.2679107479
A32: 4 | B32: 0.06066258155 | C32: 0.2513274123 | D32: =kepler($D$6,C32) -> 0.355841074 | E32: 0.937353808 | F32: 0.3483788722 | G32: 0.7187938576 | H32: 0.8866990184 | I32: 0.4623471106 | J32: 0.948807892 | K32: 0.8413070266 | L32: 0.4386785874 | Q32: 0.355841074
A33: 5 | B33: =A33/100*D$11 -> 0.07582822693 | C33: 0.3141592654 | D33: 0.442663627 | E33: 0.9036139111 | F33: 0.4283478722 | G33: 0.7289158267 | H33: 0.8280982372 | I33: 0.5605830086 | J33: 0.9621688912 | K33: 0.7967703627 | L33: 0.5393755318 | Q33: 0.442663627
A34: 6 | B34: 0.09099387232 | C34: 0.3769911184 | D34: 0.5281796993 | E34: 0.8637258633 | F34: 0.5039619362 | G34: 0.740882241 | H34: 0.7608845671 | I34: 0.6488872595 | J34: 0.9779645582 | K34: 0.7441181395 | L34: 0.634588742
A35: 7 | B35: 0.1061595177 | C35: 0.4398229715 | D35: 0.6122314928 | E35: 0.8183676286 | F35: 0.5746950709 | G35: 0.7544897114 | H35: 0.687043999 | I35: 0.7266158155 | J35: 0.9959264191 | K35: 0.6842452697 | L35: 0.7236558872
A36: 8 | B36: 0.1213251631 | C36: 0.5026548246 | D36: 0.6947017192 | E36: 0.7682446823 | F36: 0.6401563154 | G36: 0.7695265953 | H36: 0.6084840799 | I36: 0.7935660807 | J36: 1.015775106 | K36: 0.6180829807 | L36: 0.8060846696
A37: 9 | B37: 0.1364908085 | C37: 0.5654866776 | D37: 0.7755109918 | E37: 0.7140633916 | F37: 0.7000810473 | G37: 0.7857809825 | H37: 0.5269450404 | I37: 0.8498993613 | J37: 1.037230897 | K37: 0.5465636769 | L37: 0.8815418768
A38: 10 | B38: 0.1516564539 | C38: 0.6283185307 | D38: 0.8546137492 | E38: 0.6565099144 | F38: 0.7543173949 | G38: 0.8030470257 | H38: 0.4439464975 | I38: 0.8960532949 | J38: 1.060022074 | K38: 0.470593087 | L38: 0.949836272
A39: 11 | B39: 0.1668220993 | C39: 0.6911503838 | D39: 0.9319934057 | E39: 0.5962348418 | F39: 0.8028100731 | G39: 0.8211295475 | H39: 0.3607650494 | I39: 0.9326567317 | J39: 1.083891003 | K39: 0.3910299911 | L39: 1.01089824
A40: 12 | B40: 0.1819877446 | C40: 0.7539822369 | D40: 1.007657296 | E40: 0.5338431366 | F40: 0.8455835296 | G40: 0.839847059 | H40: 0.2784353819 | I40: 0.9604549641 | J40: 1.108598118 | K40: 0.3086729404 | L40: 1.064758566
A41: 13 | B41: 0.19715339 | C41: 0.8168140899 | D41: 1.081631816 | E41: 0.4698885444 | F41: 0.8827257534 | G41: 0.8590334367 | H41: 0.1977670917 | I41: 0.9802490385 | J41: 1.133924136 | K41: 0.2242528787 | L41: 1.111528044
A42: 14 | B42: 0.2123190354 | C42: 0.879645943 | D42: 1.153958019 | E42: 0.4048715134 | F42: 0.9143735876 | G42: 0.878538546 | H42: 0.1193704179 | I42: 0.9928497889 | J42: 1.159670881 | K42: 0.1384303977 | L42: 1.151378989
A43: 15 | B43: 0.2274846808 | C43: 0.9424777961 | D43: 1.224687787 | E43: 0.3392396887 | F43: 0.94069997 | G43: 0.8982280934 | H43: 0.04368566185 | I43: 0.9990453258 | J43: 1.185661083 | K43: 0.05179638915 | L43: 1.184529163
A44: 16 | B44: 0.2426503262 | C44: 1.005309649 | D44: 1.293880617 | E44: 0.2733901647 | F44: 0.9619032269 | G44: 0.9179829506 | H44: -0.02898728702 | I44: 0.9995797803 | J44: 1.211737495 | K44: -0.03512498256 | L44: 1.211228299
A45: 17 | B45: 0.2578159716 | C45: 1.068141502 | D45: 1.361601005 | E45: 0.2076728327 | F45: 0.9781983411 | G45: 0.9376981502 | H45: -0.09846150093 | I45: 0.9951408608 | J45: 1.237761558 | K45: -0.1218718608 | L45: 1.231747103
A46: 18 | B46: 0.272981617 | C46: 1.130973355 | D46: 1.427916358 | E46: 0.1423943227 | F46: 0.9898100105 | G46: 0.9572817032 | H46: -0.1646387649 | I46: 0.9863539309 | J46: 1.263611848 | K46: -0.208039494 | L46: 1.246368514
A47: 19 | B47: 0.2881472624 | C47: 1.193805208 | D47: 1.492895385 | E47: 0.07782217455 | F47: 0.9969672558 | G47: 0.9766533476 | H47: -0.2274889304 | I47: 0.9737806665 | J47: 1.289182419 | K47: -0.2932747296 | L47: 1.255380915
A48: 20 | B48: 0.3033129077 | C48: 1.256637061 | D48: 1.556606861 | E48: 0.01418898985 | F48: 0.9998993312 | G48: 0.995743303 | H48: -0.2870328219 | I48: 0.9579207478 | J48: 1.31438116 | K48: -0.3772705334 | L48: 1.259072984
A49: 21 | B49: 0.3184785531 | C49: 1.319468915 | D49: 1.619118725 | E49: -0.04830359404 | F49: 0.9988327001 | G49: 1.014491078 | H49: -0.3433283954 | I49: 0.9392154241 | J49: 1.339128223 | K49: -0.4597607441 | L49: 1.257729882
A50: 22 | B50: 0.3336441985 | C50: 1.382300768 | D50: 1.680497427 | E50: -0.1094812031 | F50: 0.9939888662 | G50: 1.032844361 | H50: -0.3964597364 | I50: 0.9180521104 | J50: 1.363354556 | K50: -0.5405151881 | L50: 1.251630528
A51: 23 | B51: 0.3488098439 | C51: 1.445132621 | D51: 1.740807484 | E51: -0.1691933458 | F51: 0.9855828792 | G51: 1.050758004 | H51: -0.4465284529 | I51: 0.8947694344 | J51: 1.387000565 | K51: -0.6193352165 | L51: 1.241045711
A52: 24 | B52: 0.3639754893 | C52: 1.507964474 | D52: 1.800111183 | E52: -0.2273103685 | F52: 0.9738223639 | G52: 1.068193111 | H52: -0.4936470412 | I52: 0.8696623475 | J52: 1.410014906 | K52: -0.6960496864 | L52: 1.226236873
A53: 25 | B53: 0.3791411347 | C53: 1.570796327 | D53: 1.858468412 | E53: -0.2837207423 | F53: 0.9589069509 | G53: 1.085116223 | H53: -0.5379338453 | I53: 0.8429870569 | J53: 1.432353414 | K53: -0.7705113798 | L53: 1.207455389
A54: 26 | B54: 0.3943067801 | C54: 1.63362818 | D54: 1.915936583 | E54: -0.3383286653 | F54: 0.9410280093 | G54: 1.1014986 | H54: -0.5795092845 | I54: 0.8149656368 | J54: 1.453978151 | K54: -0.8425938382 | L54: 1.18494223
A55: 27 | B55: 0.4094724254 | C55: 1.696460033 | D55: 1.972570614 | E55: -0.3910519555 | F55: 0.9203686045 | G55: 1.117315587 | H55: -0.6184930773 | I55: 0.7857902477 | J55: 1.474856574 | K55: -0.9121885812 | L55: 1.158927913
A56: 28 | B56: 0.4246380708 | C56: 1.759291886 | D56: 2.028422972 | E56: -0.441820208 | F56: 0.8971036193 | G56: 1.132546062 | H56: -0.6550022402 | I56: 0.7556269353 | J56: 1.494960802 | K56: -0.9792026745 | L56: 1.129632649
A57: 29 | B57: 0.4398037162 | C57: 1.822123739 | D57: 2.083543737 | E57: -0.4905731884 | F57: 0.8713999924 | G57: 1.147171957 | H57: -0.6891496815 | I57: 0.7246190148 | J57: 1.514266983 | K57: -1.043556609 | L57: 1.097266649
A58: 30 | B58: 0.4549693616 | C58: 1.884955592 | D58: 2.137980703 | E58: -0.5372594366 | F58: 0.8434170367 | G58: 1.161177831 | H58: -0.7210432496 | I58: 0.6928900578 | J58: 1.532754737 | K58: -1.105182456 | L58: 1.062030518
A59: 31 | B59: 0.470135007 | C59: 1.947787445 | D59: 2.191779489 | E59: -0.5818350539 | F59: 0.8133068117 | G59: 1.174550516 | H59: -0.7507851231 | I59: 0.6605465153 | J59: 1.550406681 | K59: -1.164022271 | L59: 1.024115731
A60: 32 | B60: 0.4853006524 | C60: 2.010619298 | D60: 2.244983657 | E60: =COS(D60) -> -0.6242626534 | F60: =SIN(D60) -> 0.7812145285 | G60: =1-D$6*E60 -> 1.187278796 | H60: =(E60-D$6)/G60 -> -0.7784714563 | I60: =D$13*F60/G60 -> 0.6276800074 | J60: =D$5*G60 -> 1.567208011 | K60: =J60*(H60*D$14-I60*D$15) -> -1.220026702 | L60: =J60*(I60*D$14+H60*D$15) -> 0.9837051358
A61: 33 | B61: 0.5004662978 | C61: 2.073451151 | D61: 2.297634843 | E61: -0.6645104495 | F61: 0.7472789723 | G61: 1.199353135 | H61: -0.8041922112 | I61: 0.5943693191 | J61: 1.583146138 | K61: -1.273153793 | L61: 0.9409734921
A62: 34 | B62: 0.5156319432 | C62: 2.136283004 | D62: 2.349772884 | E62: -0.7025514717 | F62: 0.7116329318 | G62: 1.210765441 | H62: -0.8280311258 | I62: 0.5606821333 | J62: 1.598210383 | K62: -1.323367943 | L62: 0.8960880069
A63: 35 | B63: 0.5307975885 | C63: 2.199114858 | D63: 2.401435946 | E63: -0.7383628834 | F63: 0.6744036272 | G63: 1.221508865 | H63: -0.8500657778 | I63: 0.5266765359 | J63: 1.612391702 | K63: -1.370639006 | L63: 0.849208876
A64: 36 | B64: 0.5459632339 | C64: 2.261946711 | D64: 2.45266065 | E64: -0.7719253944 | F64: 0.6357131314 | G64: 1.231577618 | H64: -0.8703677125 | I64: 0.4924023203 | J64: 1.625682456 | K64: -1.414941521 | L64: 0.8004898135
A65: 37 | B65: 0.5611288793 | C65: 2.324778564 | D65: 2.503482198 | E65: -0.8032227526 | F65: 0.5956787807 | G65: 1.240966826 | H65: -0.8890026144 | I65: 0.45790212 | J65: 1.63807621 | K65: -1.456254033 | L65: 0.7500785693
A66: 38 | B66: 0.5762945247 | C66: 2.387610417 | D66: 2.553934489 | E66: -0.8322413051 | F66: 0.5544135731 | G66: 1.249672392 | H66: -0.9060305027 | I66: 0.4232123913 | J66: 1.649567557 | K66: -1.494558523 | L66: 0.6981174303
A67: 39 | B67: 0.5914601701 | C67: 2.45044227 | D67: 2.604050235 | E67: -0.8589696212 | F67: 0.5120265519 | G67: 1.257690886 | H67: -0.921505939 | I67: 0.3883642677 | J67: 1.66015197 | K67: -1.5298399 | L67: 0.6447437041
A68: 40 | B68: 0.6066258155 | C68: 2.513274123 | D68: 2.653861076 | E68: -0.8833981657 | F68: 0.4686231758 | G68: 1.26501945 | H68: -0.9354782379 | I68: 0.3533843042 | J68: 1.669825674 | K68: -1.562085579 | L68: 0.5900901838
A69: 41 | B69: 0.6217914609 | C69: 2.576105976 | D69: 2.703397678 | E69: -0.90551902 | F69: 0.4243056733 | G69: 1.271655706 | H69: -0.9479916728 | I69: 0.3182951275 | J69: 1.678585532 | K69: -1.591285106 | L69: 0.534285596
A70: 42 | B70: 0.6369571062 | C70: 2.638937829 | D70: 2.752689844 | E70: -0.9253256423 | F70: 0.3791733847 | G70: 1.277597693 | H70: -0.9590856725 | I70: 0.2831160058 | J70: 1.686428954 | K70: -1.617429848 | L70: 0.4774550297
A71: 43 | B71: 0.6521227516 | C71: 2.701769682 | D71: 2.801766609 | E71: -0.9428126632 | F71: 0.3333230898 | G71: 1.282843799 | H71: -0.9687950039 | I71: 0.2478633504 | J71: 1.693353815 | K71: -1.640512715 | L71: 0.41972035
A72: 44 | B72: 0.667288397 | C72: 2.764601535 | D72: 2.850656332 | E72: -0.9579757123 | F72: 0.2868493238 | G72: 1.287392714 | H72: -0.9771499395 | I72: 0.2125511601 | J72: 1.699358382 | K72: -1.66052794 | L72: 0.3612005956
A73: 45 | B73: 0.6824540424 | C73: 2.827433388 | D73: 2.899386793 | E73: -0.9708112732 | F73: 0.2398446825 | G73: 1.291243382 | H73: -0.9841764078 | I73: 0.1771914173 | J73: 1.704441264 | K73: -1.677470881 | L73: 0.3020123633
A74: 46 | B74: 0.6976196878 | C74: 2.890265241 | D74: 2.947985277 | E74: -0.9813165619 | F74: 0.1924001179 | G74: 1.294394969 | H74: -0.9898961237 | I74: 0.1417944439 | J74: 1.708601359 | K74: -1.691337862 | L74: 0.2422701795
A75: 47 | B75: 0.7127853332 | C75: 2.953097094 | D75: 2.996478662 | E75: -0.9894894285 | F75: 0.1446052244 | G75: 1.296846829 | H75: -0.9943267008 | I75: 0.1063692252 | J75: 1.711837814 | K75: -1.702126046 | L75: 0.1820868618
A76: 48 | B76: 0.7279509786 | C76: 3.015928947 | D76: 3.044893503 | E76: -0.9953282792 | F76: 0.09654851952 | G76: 1.298598484 | H76: -0.9974817431 | I76: 0.07092370641 | J76: 1.714149999 | K76: -1.709833329 | L76: 0.1215738712
A77: 49 | B77: 0.743116624 | C77: 3.078760801 | D77: 3.093256116 | E77: -0.998832017 | F77: 0.04831771758 | G77: 1.299649605 | H77: -0.9993709165 | I77: 0.03546507054 | J77: 1.715537479 | K77: -1.714458262 | L77: 0.0608416577
A78: 50 | B78: 0.7582822693 | C78: 3.141592654 | D78: 3.141592654 | E78: -1 | F78: 1.225148455e-16 | G78: 1.3 | H78: -1 | I78: 8.990131836e-17 | J78: 1.716 | K78: -1.716 | L78: 1.542706623e-16
A79: 51 | B79: 0.7734479147 | C79: 3.204424507 | D79: 3.189929191 | E79: -0.998832017 | F79: -0.04831771758 | G79: 1.299649605 | H79: -0.9993709165 | I79: -0.03546507054 | J79: 1.715537479 | K79: -1.714458262 | L79: -0.0608416577
A80: 52 | B80: 0.7886135601 | C80: 3.26725636 | D80: 3.238291804 | E80: -0.9953282792 | F80: -0.09654851952 | G80: 1.298598484 | H80: -0.9974817431 | I80: -0.07092370641 | J80: 1.714149999 | K80: -1.709833329 | L80: -0.1215738712
A81: 53 | B81: 0.8037792055 | C81: 3.330088213 | D81: 3.286706645 | E81: -0.9894894285 | F81: -0.1446052244 | G81: 1.296846829 | H81: -0.9943267008 | I81: -0.1063692252 | J81: 1.711837814 | K81: -1.702126046 | L81: -0.1820868618
A82: 54 | B82: 0.8189448509 | C82: 3.392920066 | D82: 3.335200031 | E82: -0.9813165619 | F82: -0.1924001179 | G82: 1.294394969 | H82: -0.9898961237 | I82: -0.1417944439 | J82: 1.708601359 | K82: -1.691337862 | L82: -0.2422701795
A83: 55 | B83: 0.8341104963 | C83: 3.455751919 | D83: 3.383798514 | E83: -0.9708112732 | F83: -0.2398446825 | G83: 1.291243382 | H83: -0.9841764078 | I83: -0.1771914173 | J83: 1.704441264 | K83: -1.677470881 | L83: -0.3020123633
A84: 56 | B84: 0.8492761417 | C84: 3.518583772 | D84: 3.432528975 | E84: -0.9579757123 | F84: -0.2868493238 | G84: 1.287392714 | H84: -0.9771499395 | I84: -0.2125511601 | J84: 1.699358382 | K84: -1.66052794 | L84: -0.3612005956
A85: 57 | B85: 0.8644417871 | C85: 3.581415625 | D85: 3.481418698 | E85: -0.9428126632 | F85: -0.3333230898 | G85: 1.282843799 | H85: -0.9687950039 | I85: -0.2478633504 | J85: 1.693353815 | K85: -1.640512715 | L85: -0.41972035
A86: 58 | B86: 0.8796074324 | C86: 3.644247478 | D86: 3.530495463 | E86: -0.9253256423 | F86: -0.3791733847 | G86: 1.277597693 | H86: -0.9590856725 | I86: -0.2831160058 | J86: 1.686428954 | K86: -1.617429848 | L86: -0.4774550297
A87: 59 | B87: 0.8947730778 | C87: 3.707079331 | D87: 3.579787629 | E87: -0.90551902 | F87: -0.4243056733 | G87: 1.271655706 | H87: -0.9479916728 | I87: -0.3182951275 | J87: 1.678585532 | K87: -1.591285106 | L87: -0.534285596
A88: 60 | B88: 0.9099387232 | C88: 3.769911184 | D88: 3.629324232 | E88: -0.8833981657 | F88: -0.4686231758 | G88: 1.26501945 | H88: -0.9354782379 | I88: -0.3533843042 | J88: 1.669825674 | K88: -1.562085579 | L88: -0.5900901838
A89: 61 | B89: 0.9251043686 | C89: 3.832743037 | D89: 3.679135072 | E89: -0.8589696212 | F89: -0.5120265519 | G89: 1.257690886 | H89: -0.921505939 | I89: -0.3883642677 | J89: 1.66015197 | K89: -1.5298399 | L89: -0.6447437041
A90: 62 | B90: 0.940270014 | C90: 3.89557489 | D90: 3.729250819 | E90: -0.8322413051 | F90: -0.5544135731 | G90: 1.249672392 | H90: -0.9060305027 | I90: -0.4232123913 | J90: 1.649567557 | K90: -1.494558523 | L90: -0.6981174303
A91: 63 | B91: 0.9554356594 | C91: 3.958406744 | D91: 3.779703109 | E91: -0.8032227526 | F91: -0.5956787807 | G91: 1.240966826 | H91: -0.8890026144 | I91: -0.45790212 | J91: 1.63807621 | K91: -1.456254033 | L91: -0.7500785693
A92: 64 | B92: 0.9706013048 | C92: 4.021238597 | D92: 3.830524657 | E92: =COS(D92) -> -0.7719253944 | F92: =SIN(D92) -> -0.6357131314 | G92: =1-D$6*E92 -> 1.231577618 | H92: =(E92-D$6)/G92 -> -0.8703677125 | I92: =D$13*F92/G92 -> -0.4924023203 | J92: =D$5*G92 -> 1.625682456 | K92: =J92*(H92*D$14-I92*D$15) -> -1.414941521 | L92: =J92*(I92*D$14+H92*D$15) -> -0.8004898135
A93: 65 | B93: 0.9857669501 | C93: =D$12*(B93-D$8) -> 4.08407045 | D93: 3.881749362 | E93: -0.7383628834 | F93: -0.6744036272 | G93: 1.221508865 | H93: -0.8500657778 | I93: -0.5266765359 | J93: 1.612391702 | K93: -1.370639006 | L93: -0.849208876
A94: 66 | B94: 1.000932596 | C94: 4.146902303 | D94: 3.933412423 | E94: -0.7025514717 | F94: -0.7116329318 | G94: 1.210765441 | H94: -0.8280311258 | I94: -0.5606821333 | J94: 1.598210383 | K94: -1.323367943 | L94: -0.8960880069
A95: 67 | B95: 1.016098241 | C95: 4.209734156 | D95: 3.985550464 | E95: -0.6645104495 | F95: -0.7472789723 | G95: 1.199353135 | H95: -0.8041922112 | I95: -0.5943693191 | J95: 1.583146138 | K95: -1.273153793 | L95: -0.9409734921
A96: 68 | B96: 1.031263886 | C96: 4.272566009 | D96: =kepler($D$6,C96) -> 4.03820165 | E96: -0.6242626534 | F96: -0.7812145285 | G96: 1.187278796 | H96: -0.7784714563 | I96: -0.6276800074 | J96: 1.567208011 | K96: -1.220026702 | L96: -0.9837051358
A97: 69 | B97: =A97/100*D$11 -> 1.046429532 | C97: 4.335397862 | D97: 4.091405818 | E97: -0.5818350539 | F97: -0.8133068117 | G97: 1.174550516 | H97: -0.7507851231 | I97: -0.6605465153 | J97: 1.550406681 | K97: -1.164022271 | L97: -1.024115731
A98: 70 | B98: 1.061595177 | C98: 4.398229715 | D98: 4.145204604 | E98: -0.5372594366 | F98: -0.8434170367 | G98: 1.161177831 | H98: -0.7210432496 | I98: -0.6928900578 | J98: 1.532754737 | K98: -1.105182456 | L98: -1.062030518
A99: 71 | B99: 1.076760822 | C99: 4.461061568 | D99: 4.19964157 | E99: -0.4905731884 | F99: -0.8713999924 | G99: 1.147171957 | H99: -0.6891496815 | I99: -0.7246190148 | J99: 1.514266983 | K99: -1.043556609 | L99: -1.097266649
A100: 72 | B100: 1.091926468 | C100: 4.523893421 | D100: 4.254762335 | E100: -0.441820208 | F100: -0.8971036193 | G100: 1.132546062 | H100: -0.6550022402 | I100: -0.7556269353 | J100: 1.494960802 | K100: -0.9792026745 | L100: -1.129632649
A101: 73 | B101: 1.107092113 | C101: 4.586725274 | D101: 4.310614693 | E101: -0.3910519555 | F101: -0.9203686045 | G101: 1.117315587 | H101: -0.6184930773 | I101: -0.7857902477 | J101: 1.474856574 | K101: -0.9121885812 | L101: -1.158927913
A102: 74 | B102: 1.122257759 | C102: 4.649557127 | D102: 4.367248725 | E102: -0.3383286653 | F102: -0.9410280093 | G102: 1.1014986 | H102: -0.5795092845 | I102: -0.8149656368 | J102: 1.453978151 | K102: -0.8425938382 | L102: -1.18494223
A103: 75 | B103: 1.137423404 | C103: 4.71238898 | D103: 4.424716895 | E103: -0.2837207423 | F103: -0.9589069509 | G103: 1.085116223 | H103: -0.5379338453 | I103: -0.8429870569 | J103: 1.432353414 | K103: -0.7705113798 | L103: -1.207455389
A104: 76 | B104: 1.152589049 | C104: 4.775220833 | D104: 4.483074124 | E104: -0.2273103685 | F104: -0.9738223639 | G104: 1.068193111 | H104: -0.4936470412 | I104: -0.8696623475 | J104: 1.410014906 | K104: -0.6960496864 | L104: -1.226236873
A105: 77 | B105: 1.167754695 | C105: 4.838052687 | D105: 4.542377823 | E105: -0.1691933458 | F105: -0.9855828792 | G105: 1.050758004 | H105: -0.4465284529 | I105: -0.8947694344 | J105: 1.387000565 | K105: -0.6193352165 | L105: -1.241045711
A106: 78 | B106: 1.18292034 | C106: 4.90088454 | D106: 4.60268788 | E106: -0.1094812031 | F106: -0.9939888662 | G106: 1.032844361 | H106: -0.3964597364 | I106: -0.9180521104 | J106: 1.363354556 | K106: -0.5405151881 | L106: -1.251630528
A107: 79 | B107: 1.198085986 | C107: 4.963716393 | D107: 4.664066583 | E107: -0.04830359404 | F107: -0.9988327001 | G107: 1.014491078 | H107: -0.3433283954 | I107: -0.9392154241 | J107: 1.339128223 | K107: -0.4597607441 | L107: -1.257729882
A108: 80 | B108: 1.213251631 | C108: 5.026548246 | D108: 4.726578446 | E108: 0.01418898985 | F108: -0.9998993312 | G108: 0.995743303 | H108: -0.2870328219 | I108: -0.9579207478 | J108: 1.31438116 | K108: -0.3772705334 | L108: -1.259072984
A109: 81 | B109: 1.228417276 | C109: 5.089380099 | D109: 4.790289922 | E109: 0.07782217455 | F109: -0.9969672558 | G109: 0.9766533476 | H109: -0.2274889304 | I109: -0.9737806665 | J109: 1.289182419 | K109: -0.2932747296 | L109: -1.255380915
A110: 82 | B110: 1.243582922 | C110: 5.152211952 | D110: 4.855268949 | E110: 0.1423943227 | F110: -0.9898100105 | G110: 0.9572817032 | H110: -0.1646387649 | I110: -0.9863539309 | J110: 1.263611848 | K110: -0.208039494 | L110: -1.246368514
A111: 83 | B111: 1.258748567 | C111: 5.215043805 | D111: 4.921584303 | E111: 0.2076728327 | F111: -0.9781983411 | G111: 0.9376981502 | H111: -0.09846150093 | I111: -0.9951408608 | J111: 1.237761558 | K111: -0.1218718608 | L111: -1.231747103
A112: 84 | B112: 1.273914212 | C112: 5.277875658 | D112: 4.98930469 | E112: 0.2733901647 | F112: -0.9619032269 | G112: 0.9179829506 | H112: -0.02898728702 | I112: -0.9995797803 | J112: 1.211737495 | K112: -0.03512498256 | L112: -1.211228299
A113: 85 | B113: 1.289079858 | C113: 5.340707511 | D113: 5.05849752 | E113: 0.3392396887 | F113: -0.94069997 | G113: 0.8982280934 | H113: 0.04368566185 | I113: -0.9990453258 | J113: 1.185661083 | K113: 0.05179638915 | L113: -1.184529163
A114: 86 | B114: 1.304245503 | C114: 5.403539364 | D114: 5.129227288 | E114: 0.4048715134 | F114: -0.9143735876 | G114: 0.878538546 | H114: 0.1193704179 | I114: -0.9928497889 | J114: 1.159670881 | K114: 0.1384303977 | L114: -1.151378989
A115: 87 | B115: 1.319411149 | C115: 5.466371217 | D115: 5.201553491 | E115: 0.4698885444 | F115: -0.8827257534 | G115: 0.8590334367 | H115: 0.1977670917 | I115: -0.9802490385 | J115: 1.133924136 | K115: 0.2242528787 | L115: -1.111528044
A116: 88 | B116: 1.334576794 | C116: 5.52920307 | D116: 5.275528011 | E116: 0.5338431366 | F116: -0.8455835296 | G116: 0.839847059 | H116: 0.2784353819 | I116: -0.9604549641 | J116: 1.108598118 | K116: 0.3086729404 | L116: -1.064758566
A117: 89 | B117: 1.349742439 | C117: 5.592034923 | D117: 5.351191901 | E117: 0.5962348418 | F117: -0.8028100731 | G117: 0.8211295475 | H117: 0.3607650494 | I117: -0.9326567317 | J117: 1.083891003 | K117: 0.3910299911 | L117: -1.01089824
A118: 90 | B118: 1.364908085 | C118: 5.654866776 | D118: 5.428571558 | E118: 0.6565099144 | F118: -0.7543173949 | G118: 0.8030470257 | H118: 0.4439464975 | I118: -0.8960532949 | J118: 1.060022074 | K118: 0.470593087 | L118: -0.949836272
A119: 91 | B119: 1.38007373 | C119: 5.71769863 | D119: 5.507674315 | E119: 0.7140633916 | F119: -0.7000810473 | G119: 0.7857809825 | H119: 0.5269450404 | I119: -0.8498993613 | J119: 1.037230897 | K119: 0.5465636769 | L119: -0.8815418768
A120: 92 | B120: 1.395239376 | C120: 5.780530483 | D120: 5.588483588 | E120: 0.7682446823 | F120: -0.6401563154 | G120: 0.7695265953 | H120: 0.6084840799 | I120: -0.7935660807 | J120: 1.015775106 | K120: 0.6180829807 | L120: -0.8060846696
A121: 93 | B121: 1.410405021 | C121: 5.843362336 | D121: 5.670953814 | E121: 0.8183676286 | F121: -0.5746950709 | G121: 0.7544897114 | H121: 0.687043999 | I121: -0.7266158155 | J121: 0.9959264191 | K121: 0.6842452697 | L121: -0.7236558872
A122: 94 | B122: 1.425570666 | C122: 5.906194189 | D122: 5.755005608 | E122: 0.8637258633 | F122: -0.5039619362 | G122: 0.740882241 | H122: 0.7608845671 | I122: -0.6488872595 | J122: 0.9779645582 | K122: 0.7441181395 | L122: -0.634588742
A123: 95 | B123: 1.440736312 | C123: 5.969026042 | D123: 5.84052168 | E123: 0.9036139111 | F123: -0.4283478722 | G123: 0.7289158267 | H123: 0.8280982372 | I123: -0.5605830086 | J123: 0.9621688912 | K123: 0.7967703627 | L123: -0.5393755318
A124: 96 | B124: 1.455901957 | C124: 6.031857895 | D124: 5.927344233 | E124: =COS(D124) -> 0.937353808 | F124: -0.3483788722 | G124: 0.7187938576 | H124: =(E124-D$6)/G124 -> 0.8866990184 | I124: -0.4623471106 | J124: 0.948807892 | K124: =J124*(H124*D$14-I124*D$15) -> 0.8413070266 | L124: -0.4386785874
A125: 97 | B125: 1.471067603 | C125: 6.094689748 | D125: 6.015274559 | E125: 0.9643260618 | F125: -0.2647172957 | G125: 0.7107021815 | H125: 0.9347460569 | I125: -0.3553164915 | J125: 0.9381268795 | K125: 0.8769104015 | L125: -0.3333319514
A126: 98 | B126: 1.486233248 | C126: 6.157521601 | D126: 6.104075491 | E126: 0.9840026721 | F126: -0.1781537012 | G126: 0.7047991984 | H126: 0.9704929769 | I126: -0.2411293881 | J126: 0.9303349418 | K126: 0.9028835272 | L126: -0.2243310953
A127: 99 | B127: 1.501398893 | C127: 6.220353454 | D127: 6.193477063 | E127: 0.9959789132 | F127: -0.08958797037 | G127: 0.701206326 | H127: 0.9925451146 | I127: -0.1218777894 | J127: 0.9255923504 | K127: 0.9186921654 | L127: -0.1128091495
A128: 100 | B128: 1.516564539 | C128: 6.283185307 | D128: 6.283185307 | E128: 1 | F128: -2.45029691e-16 | G128: 0.7 | H128: 1 | I128: -3.339191825e-16 | J128: 0.924 | K128: 0.924 | L128: -3.085413246e-16

Sheet Periheldrejning
B1: Periheldrejning
B2: HN, 2015-07-09
A4: Baneelementer | F4: Perihelpostioner | H4: Aphelpostioner
A5: Halve storakse | B5: a = | C5: 1.5 | F5: x | G5: y | H5: x | I5: y
A6: Ekscentricitet | B6: e = | C6: 0.8 | F6: =N24 -> 0.3 | G6: =O24 -> 0 | H6: =N74 -> -2.69445025 | I6: =O74 -> -0.1730255803
A7: Perihellængde, t = 0 | B7: Π = | C7: 0 | F7: =N124 -> 0.2975359793 | G7: =O124 -> 0.03837109613 | H7: =N174 -> -2.650189042 | I7: =O174 -> -0.5162344835
A8: Perihelvinkelhastighed | B8: w = | C8: 4 | F8: =N224 -> 0.2901843932 | G8: =O224 -> 0.07611187777 | H8: =N274 -> -2.562393697 | I8: =O274 -> -0.8509633036
F9: =N324 -> 0.2780660048 | G9: =O324 -> 0.1126023845 | H9: =N374 -> -2.43250641 | I9: =O374 -> -1.171713516
F10: =N424 -> 0.2613798804 | G10: =O424 -> 0.1472431938 | H10: =N474 -> -2.262660817 | I10: =O474 -> -1.473216219
A11: Hjælpestørrelser | F11: =N524 -> 0.2404001198 | G11: =O524 -> 0.1794652679 | H11: =N574 -> -2.055646936 | I11: =O574 -> -1.750518687
A12: Periode | B12: P = | C12: =C5^(3/2) -> 1.837117307
A13: Middelbevægelse | B13: μ = | C13: =2*PI()/C12 -> 3.42013288
B14: sqrt(1-e2) | C14: =SQRT(1-C6*C6) -> 0.6
A18: Solen | B18: 0 | C18: 0
A21: Planet
A22: Løbende indeks | B22: Tids-punkt | C22: Middel-anomali | D22: Ekscentrisk anomali E | G22: Sand anomali A | J22: Perihellængde | M22: Position i banen
A23: i | B23: t | C23: M | D23: E | E23: cos(E) | F23: sin(E) | G23: 1-e*cos(E) | H23: cos(A) | I23: sin(A) | J23: Π | K23: cos(Π) | L23: sin(Π) | M23: r | N23: x | O23: y
A24: 0 | B24: =A24/100*$C$12 -> 0 | C24: =$C$13*B24 -> 0 | D24: =kepler($C$6,C24) -> 0 | E24: =COS(D24) -> 1 | F24: =SIN(D24) -> 0 | G24: =1-$C$6*E24 -> 0.2 | H24: =(E24-$C$6)/G24 -> 1 | I24: =C$14*F24/G24 -> 0 | J24: =$C$7+$C$8*B24 -> 0 | K24: =COS(RADIANS(J24)) -> 1 | L24: =SIN(RADIANS(J24)) -> 0 | M24: =C$5*G24 -> 0.3 | N24: =M24*(H24*K24-I24*L24) -> 0.3 | O24: =M24*(I24*K24+H24*L24) -> 0
A25: 1 | B25: =A25/100*$C$12 -> 0.01837117307 | C25: =$C$13*B25 -> 0.06283185307 | D25: =kepler($C$6,C25) -> 0.2968048971 | E25: =COS(D25) -> 0.9562758286 | F25: =SIN(D25) -> 0.292466305 | G25: =1-$C$6*E25 -> 0.2349793371 | H25: =(E25-$C$6)/G25 -> 0.6650620032 | I25: =C$14*F25/G25 -> 0.746788144 | J25: =$C$7+$C$8*B25 -> 0.07348469228 | K25: =COS(RADIANS(J25)) -> 0.9999991775 | L25: =SIN(RADIANS(J25)) -> 0.001282549479 | M25: =C$5*G25 -> 0.3524690056 | N25: =M25*(H25*K25-I25*L25) -> 0.2340759579 | O25: =M25*(I25*K25+H25*L25) -> 0.2635201053
A26: 2 | B26: =A26/100*$C$12 -> 0.03674234614 | C26: 0.1256637061 | D26: 0.5302917212 | E26: =COS(D26) -> 0.862659559 | F26: =SIN(D26) -> 0.5057850188 | G26: 0.3098723528 | H26: 0.2022108732 | I26: 0.979342005 | J26: 0.1469693846 | K26: 0.9999967101 | L26: 0.002565096847 | M26: 0.4648085292 | N26: 0.09282138053 | O26: 0.4554461111
A27: 3 | B27: 0.05511351921 | C27: 0.1884955592 | D27: 0.7099048428 | E27: 0.7584238992 | F27: 0.6517616045 | G27: 0.3932608806 | H27: -0.1057214252 | I27: 0.9943957865 | J27: 0.2204540769 | K27: 0.9999925978 | L27: 0.003847639997 | M27: 0.5898913209 | N27: -0.06462065913 | O27: 0.5863411472
A28: 4 | B28: 0.07348469228 | C28: 0.2513274123 | D28: 0.8549666225 | E28: 0.656243695 | F28: 0.7545490128 | G28: 0.475005044 | H28: -0.3026416388 | I28: 0.9531044216 | J28: 0.2939387691 | K28: 0.9999868406 | L28: 0.005130176817 | M28: 0.7125075659 | N28: -0.2191154927 | O28: 0.6779789321
A29: 5 | B29: 0.09185586535 | C29: 0.3141592654 | D29: 0.977393324 | E29: 0.5591854894 | F29: 0.8290425733 | G29: 0.5526516084 | H29: -0.4357437975 | I29: 0.9000707433 | J29: 0.3674234614 | K29: 0.9999794384 | L29: 0.006412705199 | M29: 0.8289774127 | N29: -0.3659991036 | O29: 0.7438065655
A30: 6 | B30: 0.1102270384 | C30: 0.3769911184 | D30: 1.084095824 | E30: 0.4677120771 | F30: =SIN(D30) -> 0.8838808816 | G30: =1-$C$6*E30 -> 0.6258303383 | H30: -0.5309552806 | I30: =C$14*F30/G30 -> 0.8473998407 | J30: =$C$7+$C$8*B30 -> 0.4409081537 | K30: 0.9999703913 | L30: =SIN(RADIANS(J30)) -> 0.007695223032 | M30: =C$5*G30 -> 0.9387455075 | N30: =M30*(H30*K30-I30*L30) -> -0.5045386209 | O30: =M30*(I30*K30+H30*L30) -> 0.7916336955
A31: 7 | B31: 0.1285982115 | C31: 0.4398229715 | D31: 1.17929177 | E31: 0.3815795625 | F31: 0.9243359982 | G31: 0.69473635 | H31: -0.6022722685 | I31: 0.7982907457 | J31: 0.514392846 | K31: 0.9999596994 | L31: 0.008977728207 | M31: 1.042104525 | N31: -0.635073956 | O31: 0.8262341747
A32: 8 | B32: 0.1469693846 | C32: 0.5026548246 | D32: 1.265712165 | E32: 0.3003734512 | F32: 0.9538216761 | G32: 0.7597012391 | H32: -0.6576618849 | I32: 0.7533132451 | J32: 0.5878775383 | K32: 0.9999473626 | L32: 0.01026021861 | M32: 1.139551859 | N32: -0.7582081517 | O32: 0.850704906
A33: 9 | B33: 0.1653405576 | C33: 0.5654866776 | D33: 1.345218743 | E33: 0.22366935 | F33: 0.9746650819 | G33: 0.82106452 | H33: -0.7019310127 | I33: 0.7122449392 | J33: 0.6613622306 | K33: 0.9999333809 | L33: 0.01154269214 | M33: 1.23159678 | N33: -0.8745636161 | O33: 0.8671615246
A34: 10 | B34: 0.1837117307 | C34: 0.6283185307 | D34: 1.419135784 | E34: 0.1510798225 | F34: 0.9885215664 | G34: 0.879136142 | H34: -0.7381338868 | I34: 0.6746542561 | J34: 0.7348469228 | K34: 0.9999177544 | L34: 0.01282514669 | M34: 1.318704213 | N34: -0.9847103506 | O34: 0.8771124937
A35: 11 | B35: 0.2020829038 | C35: 0.6911503838 | D35: 1.488438813 | E35: 0.08226444355 | F35: 0.9966105364 | G35: 0.9341884452 | H35: -0.7682984736 | I35: 0.6400917555 | J35: 0.8083316151 | K35: 0.9999004831 | L35: 0.01410758013 | M35: 1.401282668 | N35: -1.089149981 | O35: 0.8816719534
A36: 12 | B36: 0.2204540769 | C36: 0.7539822369 | D36: 1.553867607 | E36: 0.01692791125 | F36: 0.9998567126 | G36: 0.986457671 | H36: -0.7938222914 | I36: 0.6081497922 | J36: 0.8818163074 | K36: 0.9998815671 | L36: 0.01538999037 | M36: 1.479686506 | N36: -1.188318028 | O36: 0.8816872592
A37: 13 | B37: 0.2388252499 | C37: 0.8168140899 | D37: 1.615996989 | E37: -0.04518527232 | F37: 0.998978624 | G37: 1.036148218 | H37: -0.8156991999 | I37: 0.5784762875 | J37: 0.9553009997 | K37: 0.9998610063 | L37: 0.0166723753 | M37: 1.554222327 | N37: -1.282591507 | O37: 0.8778189259
A38: 14 | B38: 0.257196423 | C38: 0.879645943 | D38: 1.675282934 | E38: -0.1042965899 | F38: 0.9945462389 | G38: 1.083437272 | H38: -0.8346552342 | I38: 0.5507727663 | J38: 1.028785692 | K38: 0.9998388008 | L38: 0.0179547328 | M38: 1.625155908 | N38: -1.372297358 | O38: 0.8705927215
A39: 15 | B39: 0.2755675961 | C39: 0.9424777961 | D39: 1.732093613 | E39: -0.1605987887 | F39: 0.9870197714 | G39: 1.128479031 | H39: -0.8512331752 | I39: 0.5247876536 | J39: 1.102270384 | K39: 0.9998149506 | L39: 0.01923706076 | M39: 1.692718546 | N39: -1.457720169 | O39: 0.8604347657
A40: 16 | B40: 0.2939387691 | C40: 1.005309649 | D40: 1.78673091 | E40: -0.2142604011 | F40: 0.9767765766 | G40: 1.171408321 | H40: -0.8658470177 | I40: 0.5003088466 | J40: 1.175755077 | K40: 0.9997894558 | L40: 0.02051935708 | M40: 1.757112481 | N40: -1.539108826 | O40: 0.8476958727
A41: 17 | B41: 0.3123099422 | C41: 1.068141502 | D41: 1.839445716 | E41: -0.2654295147 | F41: 0.9641302675 | G41: 1.212343612 | H41: -0.8788181043 | I41: 0.4771569338 | J41: 1.249239769 | K41: 0.9997623164 | L41: 0.02180161965 | M41: 1.818515418 | N41: -1.616682061 | O41: 0.8326688651
A42: 18 | B42: 0.3306811153 | C42: 1.130973355 | D42: 1.89044904 | E42: -0.3142368846 | F42: 0.9493446057 | G42: 1.251389508 | H42: -0.8903997339 | I42: 0.4551794305 | J42: 1.322724461 | K42: 0.9997335325 | L42: 0.02308384636 | M42: 1.877084262 | N42: -1.690633038 | O42: 0.815601163
A43: 19 | B43: 0.3490522883 | C43: 1.193805208 | D43: 1.939920243 | E43: -0.3607984964 | F43: 0.9326437932 | G43: 1.288638797 | H43: -0.9007943102 | I43: 0.4342460255 | J43: 1.396209153 | K43: 0.9997031041 | L43: 0.02436603509 | M43: 1.932958196 | N43: -1.761133138 | O43: 0.7967041202
A44: 20 | B44: 0.3674234614 | C44: 1.256637061 | D44: 1.988013247 | E44: -0.4052176781 | F44: 0.9142202324 | G44: 1.324174143 | H44: -0.9101655435 | I44: 0.4142447144 | J44: 1.469693846 | K44: 0.9996710312 | L44: 0.02564818375 | M44: 1.986261214 | N44: -1.828335078 | O44: 0.7761600675
A45: 21 | B45: 0.3857946345 | C45: 1.319468915 | D45: 2.034861288 | E45: -0.447586848 | F45: 0.8942404674 | G45: 1.358069478 | H45: -0.9186472915 | I45: 0.3950786679 | J45: 1.543178538 | K45: 0.999637314 | L45: 0.02693029021 | M45: 2.037104218 | N45: -1.892375488 | O45: 0.7541277111
A46: 22 | B46: 0.4041658076 | C46: 1.382300768 | D46: 2.080580606 | E46: -0.487988966 | F46: 0.8728497975 | G46: 1.390391173 | H46: -0.9263500741 | I46: 0.3766636963 | J46: 1.61666323 | K46: 0.9996019524 | L46: 0.02821235238 | M46: 2.085586759 | N46: -1.953377059 | O46: 0.7307463277
A47: 23 | B47: 0.4225369806 | C47: 1.445132621 | D47: 2.125273345 | E47: -0.5264987459 | F47: 0.8501759057 | G47: 1.421198997 | H47: -0.9333659459 | I47: 0.3589261916 | J47: 1.690147923 | K47: 0.9995649465 | L47: 0.02949436814 | M47: 2.131798495 | N47: -2.011450333 | O47: 0.7061390668
A48: 24 | B48: 0.4409081537 | C48: 1.507964474 | D48: 2.169029869 | E48: -0.5631836725 | F48: 0.8263317439 | G48: 1.450546938 | H48: -0.9397721899 | I48: 0.3418014497 | J48: 1.763632615 | K48: 0.9995262964 | L48: 0.03077633538 | M48: 2.175820407 | N48: -2.066695208 | O48: 0.68041558
A49: 25 | B49: 0.4592793268 | C49: 1.570796327 | D49: 2.21193061 | E49: -0.5981048604 | F49: 0.8014178535 | G49: 1.478483888 | H49: -0.9456341536 | I49: 0.3252322977 | J49: 1.837117307 | K49: 0.9994860021 | L49: 0.032058252 | M49: 2.217725833 | N49: -2.119202206 | O49: 0.6536741369
A50: 26 | B50: 0.4776504998 | C50: 1.63362818 | D50: 2.254047578 | E50: -0.6313177808 | F50: 0.7755242483 | G50: 1.505054225 | H50: -0.9510074503 | I50: 0.3091679631 | J50: 1.910601999 | K50: 0.9994440638 | L50: 0.03334011588 | M50: 2.257581337 | N50: -2.169053551 | O50: 0.6260033446
A51: 27 | B51: 0.4960216729 | C51: 1.696460033 | D51: 2.295445598 | E51: -0.6628728817 | F51: 0.7487319565 | G51: 1.530298305 | H51: -0.9559396861 | I51: 0.2935631389 | J51: 1.984086692 | K51: 0.9994004814 | L51: 0.03462192493 | M51: 2.295447458 | N51: -2.216324081 | O51: 0.5974835574
A52: 28 | B52: 0.514392846 | C52: 1.759291886 | D52: 2.336183322 | E52: -0.6928161182 | F52: 0.7211142949 | G52: 1.554252895 | H52: -0.9604718276 | I52: 0.2783772052 | J52: 2.057571384 | K52: 0.9993552551 | L52: 0.03590367702 | M52: 2.331379342 | N52: -2.261082038 | O52: 0.5681880426
A53: 29 | B53: 0.5327640191 | C53: 1.822123739 | D53: 2.376314082 | E53: -0.7211894082 | F53: 0.6927379284 | G53: 1.576951527 | H53: -0.9646392946 | I53: 0.2635735786 | J53: 2.131056076 | K53: 0.999308385 | L53: 0.03718537005 | M53: 2.36542729 | N53: -2.303389741 | O53: 0.5381839518
A54: 30 | B54: 0.5511351921 | C54: 1.884955592 | D54: 2.415886599 | E54: -0.7480310257 | F54: 0.6636637587 | G54: 1.598424821 | H54: -0.9684728401 | I54: 0.2491191641 | J54: 2.204540769 | K54: 0.999259871 | L54: 0.03846700191 | M54: 2.397637231 | N54: -2.343304164 | O54: 0.5075331371
A55: 31 | B55: 0.5695063652 | C55: 1.947787445 | D55: 2.454945585 | E55: -0.7733759411 | F55: 0.6339476743 | G55: 1.618700753 | H55: -0.9719992644 | I55: 0.234983893 | J55: 2.278025461 | K55: 0.9992097133 | L55: 0.0397485705 | M55: 2.428051129 | N55: -2.380877447 | O55: 0.4762928397
A56: 32 | B56: 0.5878775383 | C56: 2.010619298 | D56: 2.493532249 | E56: -0.797256117 | F56: 0.6036411881 | G56: 1.637804894 | H56: -0.9752419981 | I56: 0.2211403289 | J56: 2.351510153 | K56: 0.999157912 | L56: 0.04103007371 | M56: 2.45670734 | N56: -2.416157328 | O56: 0.4445162778
A57: 33 | B57: 0.6062487113 | C57: 2.073451151 | D57: 2.531684737 | E57: -0.8197007659 | F57: 0.5727919818 | G57: 1.655760613 | H57: -0.9782215819 | I57: 0.2075633316 | J57: 2.424994845 | K57: 0.9991044671 | L57: 0.04231150942 | M57: 2.483640919 | N57: -2.44918753 | O57: 0.4122531487
A58: 34 | B58: 0.6246198844 | C58: 2.136283004 | D58: 2.569438505 | E58: -0.8407365749 | F58: 0.5414443753 | G58: 1.67258926 | H58: -0.9809560627 | I58: 0.1942297688 | J58: 2.498479538 | K58: 0.9990493788 | L58: 0.04359287553 | M58: 2.50888389 | N58: -2.480008089 | O58: 0.3795500622
A59: 35 | B59: 0.6429910575 | C59: 2.199114858 | D59: 2.606826643 | E59: -0.8603879031 | F59: 0.5096397318 | G59: 1.688310322 | H59: -0.9834613228 | I59: 0.1811182666 | J59: 2.57196423 | K59: 0.9989926471 | L59: 0.04487416994 | M59: 2.532465484 | N59: -2.508655654 | O59: 0.3464509168
A60: 36 | B60: 0.6613622306 | C60: 2.261946711 | D60: 2.643880159 | E60: -0.8786769535 | F60: 0.4774168109 | G60: 1.702941563 | H60: -0.9857513553 | I60: 0.1682089937 | J60: 2.645448922 | K60: 0.9989342721 | L60: 0.04615539053 | M60: 2.554412344 | N60: -2.535163734 | O60: 0.3129972275
A61: 37 | B61: 0.6797334036 | C61: 2.324778564 | D61: 2.680628226 | E61: -0.8956239251 | F61: 0.444812078 | G61: 1.71649914 | H61: -0.9878384938 | I61: 0.1554834725 | J61: 2.718933614 | K61: 0.9988742539 | L61: 0.0474365352 | M61: 2.57474871 | N61: -2.559562934 | O61: 0.2792284133
A62: 38 | B62: 0.6981045767 | C62: 2.387610417 | D62: 2.717098398 | E62: -0.9112471453 | F62: 0.4118599764 | G62: 1.728997716 | H62: -0.9897336065 | I62: 0.1429244143 | J62: 2.792418307 | K62: 0.9988125927 | L62: 0.04871760184 | M62: 2.593496574 | N62: -2.581881144 | O62: 0.2451820522
A63: 39 | B63: 0.7164757498 | C63: 2.45044227 | D63: 2.753316804 | E63: -0.9255631869 | F63: 0.3785931682 | G63: 1.74045055 | H63: -0.9914462594 | I63: 0.1305155731 | J63: 2.865902999 | K63: 0.9987492884 | L63: 0.04999858834 | M63: 2.610675824 | N63: -2.602143719 | O63: 0.2108941064
A64: 40 | B64: 0.7348469228 | C64: 2.513274123 | D64: 2.789308322 | E64: -0.9385869705 | F64: 0.3450427494 | G64: 1.750869576 | H64: -0.9929848539 | I64: 0.1182416169 | J64: 2.939387691 | K64: 0.9986843413 | L64: 0.0512794926 | M64: 2.626304365 | N64: -2.620373631 | O64: 0.1763991253
A65: 41 | B65: 0.7532180959 | C65: 2.576105976 | D65: 2.82509673 | E65: -0.9503318535 | F65: 0.3112384427 | G65: 1.760265483 | H65: -0.9943567437 | I65: 0.106088012 | J65: 3.012872384 | K65: 0.9986177515 | L65: 0.0525603125 | M65: 2.640398224 | N65: -2.636591601 | O65: 0.1417304266
A66: 42 | B66: 0.771589269 | C66: 2.638937829 | D66: 2.860704846 | E66: -0.960809709 | F66: 0.2772087716 | G66: 1.768647767 | H66: -0.9955683329 | I66: 0.09404091987 | J66: 3.086357076 | K66: 0.9985495189 | L66: 0.05384104595 | M66: 2.652971651 | N66: -2.650816221 | O66: 0.1069202623
A67: 43 | B67: 0.789960442 | C67: 2.701769682 | D67: 2.896154657 | E67: -0.970030993 | F67: 0.2429812185 | G67: 1.776024794 | H67: -0.9966251589 | I67: 0.08208710348 | J67: 3.159841768 | K67: 0.9984796439 | L67: 0.05512169083 | M67: 2.664037192 | N67: -2.663064055 | O67: 0.0719999687
A68: 44 | B68: 0.8083316151 | C68: 2.764601535 | D68: 2.931467431 | E68: -0.9780048032 | F68: 0.2085823698 | G68: 1.782403843 | H68: -0.9975319626 | I68: 0.07021384205 | J68: 3.23332646 | K68: 0.9984081263 | L68: 0.05640224504 | M68: 2.673605764 | N68: -2.673349729 | O68: 0.03700010582
A69: 45 | B69: 0.8267027882 | C69: 2.827433388 | D69: 2.966663828 | E69: -0.9847389285 | F69: 0.1740380498 | G69: 1.787791143 | H69: -0.9982927456 | I69: 0.05840885289 | J69: 3.306811153 | K69: 0.9983349665 | L69: 0.05768270647 | M69: 2.681686714 | N69: -2.681686005 | O69: 0.001950585919
A70: 46 | B70: 0.8450739613 | C70: 2.890265241 | D70: 3.001763997 | E70: -0.9902398915 | F70: 0.1393734452 | G70: 1.792191913 | H70: -0.9989108188 | I70: 0.04666021897 | J70: 3.380295845 | K70: 0.9982601645 | L70: 0.05896307302 | M70: 2.68828787 | N70: -2.688083851 | O70: -0.0331192057
A71: 47 | B71: 0.8634451343 | C71: 2.953097094 | D71: 3.036787672 | E71: -0.9945129832 | F71: 0.1046132223 | G71: 1.795610387 | H71: -0.999388841 | I71: 0.03495632117 | J71: 3.453780537 | K71: 0.9981837204 | L71: 0.06024334258 | M71: 2.69341558 | N71: -2.692552494 | O71: -0.06818029674
A72: 48 | B72: 0.8818163074 | C72: 3.015928947 | D72: 3.071754258 | E72: -0.9975622903 | F72: 0.06978163797 | G72: 1.798049832 | H72: -0.9997288496 | I72: 0.02328577441 | J72: 3.52726523 | K72: 0.9981056344 | L72: 0.06152351304 | M72: 2.697074748 | N72: -2.695099465 | O72: -0.1032040191
A73: 49 | B73: 0.9001874805 | C73: 3.078760801 | D73: 3.106682917 | E73: -0.999390717 | F73: 0.03490264601 | G73: 1.799512574 | H73: -0.9999322836 | I73: 0.01163736665 | J73: 3.600749922 | K73: 0.9980259065 | L73: 0.0628035823 | M73: 2.69926886 | N73: -2.695730637 | O73: -0.1381619041
A74: 50 | B74: 0.9185586535 | C74: 3.141592654 | D74: 3.141592654 | E74: -1 | F74: 1.225148455e-16 | G74: 1.8 | H74: -1 | I74: 4.083828183e-17 | J74: 3.674234614 | K74: 0.997944537 | L74: 0.06408354825 | M74: 2.7 | N74: -2.69445025 | O74: -0.1730255803
A75: 51 | B75: 0.9369298266 | C75: 3.204424507 | D75: 3.17650239 | E75: -0.999390717 | F75: -0.03490264601 | G75: 1.799512574 | H75: -0.9999322836 | I75: -0.01163736665 | J75: 3.747719306 | K75: 0.9978615259 | L75: 0.06536340879 | M75: 2.69926886 | N75: -2.691260929 | O75: -0.2077666734
A76: 52 | B76: 0.9553009997 | C76: 3.26725636 | D76: 3.211431049 | E76: -0.9975622903 | F76: -0.06978163797 | G76: 1.798049832 | H76: -0.9997288496 | I76: -0.02328577441 | J76: 3.821203999 | K76: 0.9977768733 | L76: 0.06664316181 | M76: 2.697074748 | N76: -2.6861637 | O76: -0.242356706
A77: 53 | B77: 0.9736721728 | C77: 3.330088213 | D77: 3.246397635 | E77: -0.9945129832 | F77: -0.1046132223 | G77: 1.795610387 | H77: -0.999388841 | I77: -0.03495632117 | J77: 3.894688691 | K77: 0.9976905796 | L77: 0.06792280521 | M77: 2.69341558 | N77: -2.679157986 | O77: -0.2767669974
A78: 54 | B78: 0.9920433458 | C78: 3.392920066 | D78: 3.28142131 | E78: -0.9902398915 | F78: -0.1393734452 | G78: 1.792191913 | H78: -0.9989108188 | I78: -0.04666021897 | J78: 3.968173383 | K78: 0.9976026446 | L78: 0.06920233688 | M78: 2.68828787 | N78: -2.670241604 | O78: -0.3109685618
A79: 55 | B79: 1.010414519 | C79: 3.455751919 | D79: 3.316521479 | E79: -0.9847389285 | F79: -0.1740380498 | G79: 1.787791143 | H79: -0.9982927456 | I79: -0.05840885289 | J79: 4.041658076 | K79: 0.9975130687 | L79: 0.07048175471 | M79: 2.681686714 | N79: -2.659410752 | O79: -0.3449320033
A80: 56 | B80: 1.028785692 | C80: 3.518583772 | D80: 3.351717876 | E80: -0.9780048032 | F80: -0.2085823698 | G80: 1.782403843 | H80: -0.9975319626 | I80: -0.07021384205 | J80: 4.115142768 | K80: 0.997421852 | L80: 0.07176105661 | M80: 2.673605764 | N80: -2.646659983 | O80: -0.3786274072
A81: 57 | B81: 1.047156865 | C81: 3.581415625 | D81: 3.38703065 | E81: -0.970030993 | F81: -0.2429812185 | G81: 1.776024794 | H81: -0.9966251589 | I81: -0.08208710348 | J81: 4.18862746 | K81: 0.9973289945 | L81: 0.07304024047 | M81: 2.664037192 | N81: -2.63198218 | O81: -0.4120242269
A82: 58 | B82: 1.065528038 | C82: 3.644247478 | D82: 3.422480461 | E82: -0.960809709 | F82: -0.2772087716 | G82: 1.768647767 | H82: -0.9955683329 | I82: -0.09404091987 | J82: 4.262112152 | K82: 0.9972344965 | L82: 0.07431930418 | M82: 2.652971651 | N82: -2.615368509 | O82: -0.4450911633
A83: 59 | B83: 1.083899211 | C83: 3.707079331 | D83: 3.458088577 | E83: -0.9503318535 | F83: -0.3112384427 | G83: 1.760265483 | H83: -0.9943567437 | I83: -0.106088012 | J83: 4.335596845 | K83: 0.9971383581 | L83: 0.07559824563 | M83: 2.640398224 | N83: -2.596808374 | O83: -0.4777960369
A84: 60 | B84: 1.102270384 | C84: 3.769911184 | D84: 3.493876985 | E84: -0.9385869705 | F84: -0.3450427494 | G84: 1.750869576 | H84: -0.9929848539 | I84: -0.1182416169 | J84: 4.409081537 | K84: 0.9970405795 | L84: 0.07687706274 | M84: 2.626304365 | N84: -2.576289355 | O84: -0.5101056499
A85: 61 | B85: 1.120641557 | C85: 3.832743037 | D85: 3.529868503 | E85: -0.9255631869 | F85: -0.3785931682 | G85: 1.74045055 | H85: -0.9914462594 | I85: -0.1305155731 | J85: 4.482566229 | K85: 0.9969411609 | L85: 0.07815575338 | M85: 2.610675824 | N85: -2.553797139 | O85: -0.5419856376
A86: 62 | B86: 1.13901273 | C86: 3.89557489 | D86: 3.566086909 | E86: -0.9112471453 | F86: -0.4118599764 | G86: 1.728997716 | H86: -0.9897336065 | I86: -0.1429244143 | J86: 4.556050922 | K86: 0.9968401023 | L86: 0.07943431547 | M86: 2.593496574 | N86: -2.529315435 | O86: -0.5734003053
A87: 63 | B87: 1.157383903 | C87: 3.958406744 | D87: 3.602557081 | E87: -0.8956239251 | F87: -0.444812078 | G87: 1.71649914 | H87: -0.9878384938 | I87: -0.1554834725 | J87: 4.629535614 | K87: 0.996737404 | L87: 0.08071274689 | M87: 2.57474871 | N87: -2.50282588 | O87: -0.6043124494
A88: 64 | B88: 1.175755077 | C88: 4.021238597 | D88: 3.639305148 | E88: -0.8786769535 | F88: -0.4774168109 | G88: 1.702941563 | H88: -0.9857513553 | I88: -0.1682089937 | J88: 4.703020306 | K88: 0.9966330661 | L88: 0.08199104555 | M88: 2.554412344 | N88: -2.474307926 | O88: -0.6346831599
A89: 65 | B89: 1.19412625 | C89: =$C$13*B89 -> 4.08407045 | D89: =kepler($C$6,C89) -> 3.676358664 | E89: -0.8603879031 | F89: -0.5096397318 | G89: 1.688310322 | H89: =(E89-$C$6)/G89 -> -0.9834613228 | I89: -0.1811182666 | J89: 4.776504998 | K89: =COS(RADIANS(J89)) -> 0.9965270888 | L89: 0.08326920933 | M89: 2.532465484 | N89: -2.443738717 | O89: -0.6644716002
A90: 66 | B90: =A90/100*$C$12 -> 1.212497423 | C90: 4.146902303 | D90: 3.713746802 | E90: =COS(D90) -> -0.8407365749 | F90: -0.5414443753 | G90: 1.67258926 | H90: -0.9809560627 | I90: -0.1942297688 | J90: 4.849989691 | K90: 0.9964194723 | L90: 0.08454723614 | M90: 2.50888389 | N90: -2.411092945 | O90: -0.6936347609
A91: 67 | B91: 1.230868596 | C91: 4.209734156 | D91: 3.75150057 | E91: -0.8197007659 | F91: -0.5727919818 | G91: 1.655760613 | H91: -0.9782215819 | I91: -0.2075633316 | J91: 4.923474383 | K91: 0.9963102168 | L91: 0.08582512388 | M91: 2.483640919 | N91: -2.376342683 | O91: -0.7221271816
A92: 68 | B92: 1.249239769 | C92: 4.272566009 | D92: 3.789653058 | E92: -0.797256117 | F92: -0.6036411881 | G92: 1.637804894 | H92: -0.9752419981 | I92: -0.2211403289 | J92: 4.996959075 | K92: 0.9961993224 | L92: 0.08710287044 | M92: 2.45670734 | N92: -2.3394572 | O92: -0.7499006372
A93: 69 | B93: 1.267610942 | C93: 4.335397862 | D93: 3.828239723 | E93: -0.7733759411 | F93: -0.6339476743 | G93: 1.618700753 | H93: -0.9719992644 | I93: -0.234983893 | J93: 5.070443768 | K93: 0.9960867893 | L93: 0.08838047372 | M93: 2.428051129 | N93: -2.300402748 | O93: -0.7769037797
A94: 70 | B94: 1.285982115 | C94: 4.398229715 | D94: 3.867298708 | E94: -0.7480310257 | F94: =SIN(D94) -> -0.6636637587 | G94: =1-$C$6*E94 -> 1.598424821 | H94: -0.9684728401 | I94: =C$14*F94/G94 -> -0.2491191641 | J94: =$C$7+$C$8*B94 -> 5.14392846 | K94: 0.9959726177 | L94: =SIN(RADIANS(J94)) -> 0.08965793162 | M94: =C$5*G94 -> 2.397637231 | N94: =M94*(H94*K94-I94*L94) -> -2.259142322 | O94: =M94*(I94*K94+H94*L94) -> -0.8030817277
A95: 71 | B95: 1.304353288 | C95: 4.461061568 | D95: 3.906871225 | E95: -0.7211894082 | F95: -0.6927379284 | G95: 1.576951527 | H95: -0.9646392946 | I95: -0.2635735786 | J95: 5.217413152 | K95: 0.9958568079 | L95: 0.09093524204 | M95: 2.36542729 | N95: -2.21563538 | O95: -0.8283755944
A96: 72 | B96: 1.322724461 | C96: 4.523893421 | D96: 3.947001985 | E96: -0.6928161182 | F96: -0.7211142949 | G96: 1.554252895 | H96: -0.9604718276 | I96: -0.2783772052 | J96: 5.290897844 | K96: 0.9957393599 | L96: 0.09221240288 | M96: 2.331379342 | N96: -2.169837535 | O96: -0.8527219398
A97: 73 | B97: 1.341095634 | C97: 4.586725274 | D97: 3.987739709 | E97: -0.6628728817 | F97: -0.7487319565 | G97: 1.530298305 | H97: -0.9559396861 | I97: -0.2935631389 | J97: 5.364382537 | K97: 0.9956202739 | L97: 0.09348941204 | M97: 2.295447458 | N97: -2.121700189 | O97: -0.8760521325
A98: 74 | B98: 1.359466807 | C98: 4.649557127 | D98: 4.029137729 | E98: -0.6313177808 | F98: -0.7755242483 | G98: 1.505054225 | H98: -0.9510074503 | I98: -0.3091679631 | J98: 5.437867229 | K98: 0.9954995503 | L98: 0.09476626741 | M98: 2.257581337 | N98: -2.071170126 | O98: -0.8982916017
A99: 75 | B99: 1.37783798 | C99: 4.71238898 | D99: 4.071254698 | E99: -0.5981048604 | F99: -0.8014178535 | G99: 1.478483888 | H99: -0.9456341536 | I99: -0.3252322977 | J99: 5.511351921 | K99: 0.9953771891 | L99: 0.0960429669 | M99: 2.217725833 | N99: -2.018189035 | O99: -0.9193589535
A100: 76 | B100: 1.396209153 | C100: 4.775220833 | D100: 4.114155438 | E100: -0.5631836725 | F100: -0.8263317439 | G100: 1.450546938 | H100: -0.9397721899 | I100: -0.3418014497 | J100: 5.584836614 | K100: 0.9952531905 | L100: 0.0973195084 | M100: 2.175820407 | N100: -1.96269297 | O100: -0.9391649214
A101: 77 | B101: 1.414580326 | C101: 4.838052687 | D101: 4.157911962 | E101: -0.5264987459 | F101: -0.8501759057 | G101: 1.421198997 | H101: -0.9333659459 | I101: -0.3589261916 | J101: 5.658321306 | K101: 0.9951275549 | L101: 0.09859588982 | M101: 2.131798495 | N101: -1.904611715 | O101: -0.9576111095
A102: 78 | B102: 1.4329515 | C102: 4.90088454 | D102: 4.202604702 | E102: -0.487988966 | F102: -0.8728497975 | G102: 1.390391173 | H102: -0.9263500741 | I102: -0.3766636963 | J102: 5.731805998 | K102: 0.9950002823 | L102: 0.09987210905 | M102: 2.085586759 | N102: -1.843868062 | O102: -0.9745884772
A103: 79 | B103: 1.451322673 | C103: 4.963716393 | D103: 4.248324019 | E103: -0.447586848 | F103: -0.8942404674 | G103: 1.358069478 | H103: -0.9186472915 | I103: -0.3950786679 | J103: 5.80529069 | K103: 0.9948713731 | L103: 0.101148164 | M103: 2.037104218 | N103: -1.780376957 | O103: -0.9899754961
A104: 80 | B104: 1.469693846 | C104: 5.026548246 | D104: 4.29517206 | E104: -0.4052176781 | F104: -0.9142202324 | G104: 1.324174143 | H104: -0.9101655435 | I104: -0.4142447144 | J104: 5.878775383 | K104: 0.9947408273 | L104: 0.1024240526 | M104: 1.986261214 | N104: -1.714044518 | O104: -1.00363589
A105: 81 | B105: 1.488065019 | C105: 5.089380099 | D105: 4.343265064 | E105: -0.3607984964 | F105: -0.9326437932 | G105: 1.288638797 | H105: -0.9007943102 | I105: -0.4342460255 | J105: 5.952260075 | K105: 0.9946086452 | L105: 0.1036997727 | M105: 1.932958196 | N105: -1.644766875 | O105: -1.015415832
A106: 82 | B106: 1.506436192 | C106: 5.152211952 | D106: 4.392736267 | E106: -0.3142368846 | F106: -0.9493446057 | G106: 1.251389508 | H106: -0.8903997339 | I106: -0.4551794305 | J106: 6.025744767 | K106: 0.9944748271 | L106: 0.1049753222 | M106: 1.877084262 | N106: -1.572428819 | O106: -1.025140445
A107: 83 | B107: 1.524807365 | C107: 5.215043805 | D107: 4.443739591 | E107: -0.2654295147 | F107: -0.9641302675 | G107: 1.212343612 | H107: -0.8788181043 | I107: -0.4771569338 | J107: 6.09922946 | K107: 0.9943393731 | L107: 0.106250699 | M107: 1.818515418 | N107: -1.49690221 | O107: -1.032609363
A108: 84 | B108: 1.543178538 | C108: 5.277875658 | D108: 4.496454397 | E108: -0.2142604011 | F108: -0.9767765766 | G108: 1.171408321 | H108: -0.8658470177 | I108: -0.5003088466 | J108: 6.172714152 | K108: 0.9942022835 | L108: 0.1075259011 | M108: 1.757112481 | N108: -1.418044107 | O108: -1.037591048
A109: 85 | B109: 1.561549711 | C109: 5.340707511 | D109: 4.551091694 | E109: -0.1605987887 | F109: -0.9870197714 | G109: 1.128479031 | H109: -0.8512331752 | I109: -0.5247876536 | J109: 6.246198844 | K109: 0.9940635586 | L109: 0.1088009262 | M109: 1.692718546 | N109: -1.335694577 | O109: -1.039815405
A110: 86 | B110: 1.579920884 | C110: 5.403539364 | D110: 4.607902373 | E110: -0.1042965899 | F110: -0.9945462389 | G110: 1.083437272 | H110: -0.8346552342 | I110: -0.5507727663 | J110: 6.319683536 | K110: 0.9939231984 | L110: 0.1100757725 | M110: 1.625155908 | N110: -1.249674137 | O110: -1.038964039
A111: 87 | B111: 1.598292057 | C111: 5.466371217 | D111: 4.667188318 | E111: -0.04518527232 | F111: -0.998978624 | G111: 1.036148218 | H111: -0.8156991999 | I111: -0.5784762875 | J111: 6.393168229 | K111: 0.9937812033 | L111: 0.1113504376 | M111: 1.554222327 | N111: -1.159780819 | O111: -1.034657186
A112: 88 | B112: 1.61666323 | C112: 5.52920307 | D112: 4.7293177 | E112: 0.01692791125 | F112: -0.9998567126 | G112: 0.986457671 | H112: -0.7938222914 | I112: -0.6081497922 | J112: 6.466652921 | K112: 0.9936375735 | L112: 0.1126249196 | M112: 1.479686506 | N112: -1.065786872 | O112: -1.026435825
A113: 89 | B113: 1.635034403 | C113: 5.592034923 | D113: 4.794746494 | E113: 0.08226444355 | F113: -0.9966105364 | G113: 0.9341884452 | H113: -0.7682984736 | I113: -0.6400917555 | J113: 6.540137613 | K113: 0.9934923092 | L113: 0.1138992163 | M113: 1.401282668 | N113: -0.9674352899 | O113: -1.013736689
A114: 90 | B114: 1.653405576 | C114: 5.654866776 | D114: 4.864049523 | E114: 0.1510798225 | F114: -0.9885215664 | G114: 0.879136142 | H114: -0.7381338868 | I114: -0.6746542561 | J114: 6.613622306 | K114: 0.9933454107 | L114: 0.1151733257 | M114: 1.318704213 | N114: -0.8644366357 | O114: -0.9958564677
A115: 91 | B115: 1.671776749 | C115: 5.71769863 | D115: 4.937966564 | E115: 0.22366935 | F115: -0.9746650819 | G115: 0.82106452 | H115: -0.7019310127 | I115: -0.7122449392 | J115: 6.687106998 | K115: 0.9931968783 | L115: 0.1164472456 | M115: 1.23159678 | N115: -0.7564673459 | O115: -0.9718990601
A116: 92 | B116: 1.690147923 | C116: 5.780530483 | D116: 5.017473142 | E116: 0.3003734512 | F116: -0.9538216761 | G116: 0.7597012391 | H116: -0.6576618849 | I116: -0.7533132451 | J116: 6.76059169 | K116: 0.993046712 | L116: 0.1177209739 | M116: 1.139551859 | N116: -0.6431724173 | O116: -0.9406953173
A117: 93 | B117: 1.708519096 | C117: 5.843362336 | D117: 5.103893537 | E117: 0.3815795625 | F117: -0.9243359982 | G117: 0.69473635 | H117: -0.6022722685 | I117: -0.7982907457 | J117: 6.834076382 | K117: 0.9928949123 | L117: 0.1189945087 | M117: 1.042104525 | N117: -0.5241794683 | O117: -0.9006762604
A118: 94 | B118: 1.726890269 | C118: 5.906194189 | D118: 5.199089483 | E118: 0.4677120771 | F118: -0.8838808816 | G118: 0.6258303383 | H118: -0.5309552806 | I118: -0.8473998407 | J118: 6.907561075 | K118: 0.9927414793 | L118: 0.1202678477 | M118: 0.9387455075 | N118: -0.3991418001 | O118: -0.8496640225
A119: 95 | B119: 1.745261442 | C119: 5.969026042 | D119: 5.305791983 | E119: 0.5591854894 | F119: -0.8290425733 | G119: 0.5526516084 | H119: -0.4357437975 | I119: -0.9000707433 | J119: 6.981045767 | K119: 0.9925864134 | L119: 0.1215409888 | M119: 0.8289774127 | N119: -0.2678574283 | O119: -0.7845100056
A120: 96 | B120: 1.763632615 | C120: 6.031857895 | D120: 5.428218685 | E120: 0.656243695 | F120: -0.7545490128 | G120: 0.475005044 | H120: -0.3026416388 | I120: -0.9531044216 | J120: 7.054530459 | K120: 0.9924297147 | L120: 0.12281393 | M120: 0.7125075659 | N120: -0.1305998264 | O120: -0.7004360905
A121: 97 | B121: 1.782003788 | C121: 6.094689748 | D121: 5.573280464 | E121: 0.7584238992 | F121: -0.6517616045 | G121: 0.3932608806 | H121: -0.1057214252 | I121: -0.9943957865 | J121: 7.128015151 | K121: 0.9922713835 | L121: 0.1240866692 | M121: 0.5898913209 | N121: 0.01090527143 | O121: -0.5897905099
A122: 98 | B122: 1.800374961 | C122: 6.157521601 | D122: 5.752893586 | E122: 0.862659559 | F122: -0.5057850188 | G122: 0.3098723528 | H122: 0.2022108732 | I122: -0.979342005 | J122: 7.201499844 | K122: 0.9921114201 | L122: 0.1253592043 | M122: 0.4648085292 | N122: 0.1503122229 | O122: -0.4398331552
A123: 99 | B123: 1.818746134 | C123: 6.220353454 | D123: 5.98638041 | E123: 0.9562758286 | F123: -0.292466305 | G123: 0.2349793371 | H123: 0.6650620032 | I123: -0.746788144 | J123: 7.274984536 | K123: 0.9919498247 | L123: 0.1266315332 | M123: 0.3524690056 | N123: 0.2658585822 | O123: -0.2314165383
A124: 100 | B124: 1.837117307 | C124: 6.283185307 | D124: 6.283185307 | E124: 1 | F124: -1.133208111e-15 | G124: 0.2 | H124: 1 | I124: -3.399624332e-15 | J124: 7.348469228 | K124: 0.9917865977 | L124: 0.1279036538 | M124: 0.3 | N124: 0.2975359793 | O124: 0.03837109613
A125: 101 | B125: 1.85548848 | C125: 6.34601716 | D125: 6.579990204 | E125: 0.9562758286 | F125: =SIN(D125) -> 0.292466305 | G125: =1-$C$6*E125 -> 0.2349793371 | H125: =(E125-$C$6)/G125 -> 0.6650620032 | I125: =C$14*F125/G125 -> 0.746788144 | J125: =$C$7+$C$8*B125 -> 7.421953921 | K125: 0.9916217392 | L125: =SIN(RADIANS(J125)) -> 0.129175564 | M125: =C$5*G125 -> 0.3524690056 | N125: =M125*(H125*K125-I125*L125) -> 0.1984482136 | O125: =M125*(I125*K125+H125*L125) -> 0.2912948789
A126: 102 | B126: 1.873859653 | C126: 6.408849013 | D126: 6.813477028 | E126: 0.862659559 | F126: 0.5057850188 | G126: 0.3098723528 | H126: 0.2022108732 | I126: 0.979342005 | J126: 7.495438613 | K126: 0.9914552496 | L126: 0.1304472617 | M126: 0.4648085292 | N126: 0.03380577949 | O126: 0.4635775427
A127: 103 | B127: 1.892230826 | C127: 6.471680866 | D127: 6.99309015 | E127: 0.7584238992 | F127: =SIN(D127) -> 0.6517616045 | G127: =1-$C$6*E127 -> 0.3932608806 | H127: =(E127-$C$6)/G127 -> -0.1057214252 | I127: =C$14*F127/G127 -> 0.9943957865 | J127: =$C$7+$C$8*B127 -> 7.568923305 | K127: 0.9912871291 | L127: =SIN(RADIANS(J127)) -> 0.1317187448 | M127: =C$5*G127 -> 0.5898913209 | N127: =M127*(H127*K127-I127*L127) -> -0.1390850787 | O127: =M127*(I127*K127+H127*L127) -> 0.5732600731
A128: 104 | B128: 1.910601999 | C128: 6.534512719 | D128: 7.13815193 | E128: 0.656243695 | F128: 0.7545490128 | G128: 0.475005044 | H128: -0.3026416388 | I128: 0.9531044216 | J128: 7.642407997 | K128: 0.991117378 | L128: 0.1329900112 | M128: 0.7125075659 | N128: -0.3040317916 | O128: 0.6443847463
A129: 105 | B129: 1.928973172 | C129: 6.597344573 | D129: 7.260578631 | E129: 0.5591854894 | F129: 0.8290425733 | G129: 0.5526516084 | H129: -0.4357437975 | I129: 0.9000707433 | J129: 7.71589269 | K129: 0.9909459965 | L129: 0.1342610589 | M129: 0.8289774127 | N129: -0.4581285831 | O129: 0.6908847603
A130: 106 | B130: 1.947344346 | C130: 6.660176426 | D130: 7.367281131 | E130: 0.4677120771 | F130: 0.8838808816 | G130: 0.6258303383 | H130: -0.5309552806 | I130: 0.8473998407 | J130: 7.789377382 | K130: 0.9907729851 | L130: 0.1355318858 | M130: 0.9387455075 | N130: -0.6016474843 | O130: 0.7205993564
A131: 107 | B131: 1.965715519 | C131: 6.723008279 | D131: 7.462477077 | E131: 0.3815795625 | F131: 0.9243359982 | G131: 0.69473635 | H131: -0.6022722685 | I131: 0.7982907457 | J131: 7.862862074 | K131: 0.9905983438 | L131: 0.1368024897 | M131: 1.042104525 | N131: -0.735536208 | O131: 0.7382197016
A132: 108 | B132: 1.984086692 | C132: 6.785840132 | D132: 7.548897473 | E132: 0.3003734512 | F132: 0.9538216761 | G132: 0.7597012391 | H132: -0.6576618849 | I132: 0.7533132451 | J132: 7.936346767 | K132: 0.9904220731 | L132: 0.1380728686 | M132: 1.139551859 | N132: -0.8607889489 | O132: 0.7467401315
A133: 109 | B133: 2.002457865 | C133: 6.848671985 | D133: 7.62840405 | E133: 0.22366935 | F133: 0.9746650819 | G133: 0.82106452 | H133: -0.7019310127 | I133: 0.7122449392 | J133: 8.009831459 | K133: 0.9902441733 | L133: 0.1393430203 | M133: 1.23159678 | N133: -0.9782936007 | O133: 0.7481792962
A134: 110 | B134: 2.020829038 | C134: 6.911503838 | D134: 7.702321091 | E134: 0.1510798225 | F134: 0.9885215664 | G134: 0.879136142 | H134: -0.7381338868 | I134: 0.6746542561 | J134: 8.083316151 | K134: 0.9900646445 | L134: 0.1406129429 | M134: 1.318704213 | N134: -1.088808421 | O134: 0.7439603641
A135: 111 | B135: 2.039200211 | C135: 6.974335691 | D135: 7.77162412 | E135: 0.08226444355 | F135: 0.9966105364 | G135: 0.9341884452 | H135: -0.7682984736 | I135: 0.6400917555 | J135: 8.156800843 | K135: 0.9898834872 | L135: 0.1418826341 | M135: 1.401282668 | N135: -1.192973418 | O135: 0.7351241648
A136: 112 | B136: 2.057571384 | C136: 7.037167544 | D136: 7.837052914 | E136: 0.01692791125 | F136: 0.9998567126 | G136: 0.986457671 | H136: -0.7938222914 | I136: 0.6081497922 | J136: 8.230285536 | K136: 0.9897007015 | L136: 0.143152092 | M136: 1.479686506 | N136: -1.291328915 | O136: 0.7224553894
A137: 113 | B137: 2.075942557 | C137: 7.099999397 | D137: 7.899182296 | E137: -0.04518527232 | F137: 0.998978624 | G137: 1.036148218 | H137: -0.8156991999 | I137: 0.5784762875 | J137: 8.303770228 | K137: 0.9895162879 | L137: 0.1444213143 | M137: 1.554222327 | N137: -1.384333315 | O137: 0.7065609059
A138: 114 | B138: 2.09431373 | C138: 7.16283125 | D138: 7.958468241 | E138: -0.1042965899 | F138: 0.9945462389 | G138: 1.083437272 | H138: -0.8346552342 | I138: 0.5507727663 | J138: 8.37725492 | K138: 0.9893302465 | L138: 0.1456902992 | M138: 1.625155908 | N138: -1.472378117 | O138: 0.6879203471
A139: 115 | B139: 2.112684903 | C139: 7.225663103 | D139: 8.01527892 | E139: -0.1605987887 | F139: 0.9870197714 | G139: 1.128479031 | H139: -0.8512331752 | I139: 0.5247876536 | J139: 8.450739613 | K139: 0.9891425778 | L139: 0.1469590443 | M139: 1.692718546 | N139: -1.555800077 | O139: 0.666919933
A140: 116 | B140: 2.131056076 | C140: 7.288494956 | D140: 8.069916218 | E140: -0.2142604011 | F140: 0.9767765766 | G140: 1.171408321 | H140: -0.8658470177 | I140: 0.5003088466 | J140: 8.524224305 | K140: 0.9889532821 | L140: 0.1482275478 | M140: 1.757112481 | N140: -1.634890906 | O140: 0.643875763
A141: 117 | B141: 2.149427249 | C141: 7.351326809 | D141: 8.122631023 | E141: -0.2654295147 | F141: 0.9641302675 | G141: 1.212343612 | H141: -0.8788181043 | I141: 0.4771569338 | J141: 8.597708997 | K141: 0.9887623595 | L141: 0.1494958074 | M141: 1.818515418 | N141: -1.709904991 | O141: 0.6190502781
A142: 118 | B142: 2.167798422 | C142: 7.414158662 | D142: 8.173634347 | E142: -0.3142368846 | F142: 0.9493446057 | G142: 1.251389508 | H142: -0.8903997339 | I142: 0.4551794305 | J142: 8.671193689 | K142: 0.9885698105 | L142: 0.1507638211 | M142: 1.877084262 | N142: -1.781065557 | O142: 0.5926641598
A143: 119 | B143: 2.186169595 | C143: 7.476990516 | D143: 8.22310555 | E143: -0.3607984964 | F143: 0.9326437932 | G143: 1.288638797 | H143: -0.9007943102 | I143: 0.4342460255 | J143: 8.744678382 | K143: 0.9883756354 | L143: 0.1520315868 | M143: 1.932958196 | N143: -1.848569611 | O143: 0.5649051056
A144: 120 | B144: 2.204540769 | C144: 7.539822369 | D144: 8.271198555 | E144: -0.4052176781 | F144: 0.9142202324 | G144: 1.324174143 | H144: -0.9101655435 | I144: 0.4142447144 | J144: 8.818163074 | K144: 0.9881798344 | L144: 0.1532991024 | M144: 1.986261214 | N144: -1.912591935 | O144: 0.5359344158
A145: 121 | B145: 2.222911942 | C145: 7.602654222 | D145: 8.318046596 | E145: -0.447586848 | F145: 0.8942404674 | G145: 1.358069478 | H145: -0.9186472915 | I145: 0.3950786679 | J145: 8.891647766 | K145: 0.987982408 | L145: 0.1545663658 | M145: 2.037104218 | N145: -1.973288337 | O145: 0.5058920175
A146: 122 | B146: 2.241283115 | C146: 7.665486075 | D146: 8.363765913 | E146: -0.487988966 | F146: 0.8728497975 | G146: 1.390391173 | H146: -0.9263500741 | I146: 0.3766636963 | J146: 8.965132459 | K146: 0.9877833564 | L146: 0.155833375 | M146: 2.085586759 | N146: -2.030798313 | O146: 0.474900351
A147: 123 | B147: 2.259654288 | C147: 7.728317928 | D147: 8.408458652 | E147: -0.5264987459 | F147: 0.8501759057 | G147: 1.421198997 | H147: -0.9333659459 | I147: 0.3589261916 | J147: 9.038617151 | K147: 0.98758268 | L147: 0.1571001279 | M147: 2.131798495 | N147: -2.085247249 | O147: 0.4430674156
A148: 124 | B148: 2.278025461 | C148: 7.791149781 | D148: 8.452215176 | E148: -0.5631836725 | F148: 0.8263317439 | G148: 1.450546938 | H148: -0.9397721899 | I148: 0.3418014497 | J148: 9.112101843 | K148: 0.9873803791 | L148: 0.1583666223 | M148: 2.175820407 | N148: -2.136748247 | O148: 0.4104891847
A149: 125 | B149: 2.296396634 | C149: 7.853981634 | D149: 8.495115917 | E149: -0.5981048604 | F149: 0.8014178535 | G149: 1.478483888 | H149: -0.9456341536 | I149: 0.3252322977 | J149: 9.185586535 | K149: 0.9871764539 | L149: 0.1596328563 | M149: 2.217725833 | N149: -2.185403656 | O149: 0.377251543
A150: 126 | B150: 2.314767807 | C150: 7.916813487 | D150: 8.537232886 | E150: -0.6313177808 | F150: 0.7755242483 | G150: 1.505054225 | H150: -0.9510074503 | I150: 0.3091679631 | J150: 9.259071228 | K150: 0.986970905 | L150: 0.1608988276 | M150: 2.257581337 | N150: -2.231306356 | O150: 0.3434318529
A151: 127 | B151: 2.33313898 | C151: 7.97964534 | D151: 8.578630905 | E151: -0.6628728817 | F151: 0.7487319565 | G151: 1.530298305 | H151: -0.9559396861 | I151: 0.2935631389 | J151: 9.33255592 | K151: 0.9867637325 | L151: 0.1621645343 | M151: 2.295447458 | N151: -2.27454085 | O151: 0.3091002367
A152: 128 | B152: 2.351510153 | C152: 8.042477193 | D152: 8.619368629 | E152: -0.6928161182 | F152: 0.7211142949 | G152: 1.554252895 | H152: -0.9604718276 | I152: 0.2783772052 | J152: 9.406040612 | K152: 0.9865549369 | L152: 0.1634299742 | M152: 2.331379342 | N152: -2.315184189 | O152: 0.2743206314
A153: 129 | B153: 2.369881326 | C153: =$C$13*B153 -> 8.105309046 | D153: =kepler($C$6,C153) -> 8.659499389 | E153: -0.7211894082 | F153: 0.6927379284 | G153: 1.576951527 | H153: -0.9646392946 | I153: 0.2635735786 | J153: 9.479525305 | K153: =COS(RADIANS(J153)) -> 0.9863445185 | L153: 0.1646951453 | M153: 2.36542729 | N153: -2.353306768 | O153: 0.2391516666
A154: 130 | B154: =A154/100*$C$12 -> 2.388252499 | C154: 8.168140899 | D154: 8.699071906 | E154: =COS(D154) -> -0.7480310257 | F154: 0.6636637587 | G154: 1.598424821 | H154: -0.9684728401 | I154: 0.2491191641 | J154: 9.553009997 | K154: 0.9861324776 | L154: 0.1659600455 | M154: 2.397637231 | N154: -2.388973007 | O154: 0.2036473987
A155: 131 | B155: 2.406623672 | C155: 8.230972752 | D155: 8.738130892 | E155: -0.7733759411 | F155: 0.6339476743 | G155: 1.618700753 | H155: -0.9719992644 | I155: 0.234983893 | J155: 9.626494689 | K155: 0.9859188145 | L155: 0.1672246727 | M155: 2.428051129 | N155: -2.422241937 | O155: 0.1678579303
A156: 132 | B156: 2.424994845 | C156: 8.293804605 | D156: 8.776717556 | E156: -0.797256117 | F156: 0.6036411881 | G156: 1.637804894 | H156: -0.9752419981 | I156: 0.2211403289 | J156: 9.699979381 | K156: 0.9857035297 | L156: 0.1684890248 | M156: 2.45670734 | N156: -2.453167712 | O156: 0.1318299364
A157: 133 | B157: 2.443366018 | C157: 8.356636459 | D157: 8.814870044 | E157: -0.8197007659 | F157: 0.5727919818 | G157: 1.655760613 | H157: -0.9782215819 | I157: 0.2075633316 | J157: 9.773464074 | K157: 0.9854866235 | L157: 0.1697530998 | M157: 2.483640919 | N157: -2.481800051 | O157: 0.09560711385
A158: 134 | B158: 2.461737191 | C158: 8.419468312 | D158: 8.852623812 | E158: -0.8407365749 | F158: 0.5414443753 | G158: 1.67258926 | H158: -0.9809560627 | I158: 0.1942297688 | J158: 9.846948766 | K158: 0.9852680962 | L158: 0.1710168956 | M158: 2.50888389 | N158: -2.508184625 | O158: 0.0592305688
A159: 135 | B159: 2.480108365 | C159: 8.482300165 | D159: 8.89001195 | E159: -0.8603879031 | F159: 0.5096397318 | G159: 1.688310322 | H159: -0.9834613228 | I159: 0.1811182666 | J159: 9.920433458 | K159: 0.9850479482 | L159: 0.17228041 | M159: 2.532465484 | N159: -2.532363394 | O159: 0.0227391519
A160: 136 | B160: 2.498479538 | C160: 8.545132018 | D160: 8.927065466 | E160: -0.8786769535 | F160: 0.4774168109 | G160: 1.702941563 | H160: -0.9857513553 | I160: 0.1682089937 | J160: 9.993918151 | K160: 0.9848261799 | L160: 0.173543641 | M160: 2.554412344 | N160: -2.554374904 | O160: -0.01383024923
A161: 137 | B161: 2.516850711 | C161: 8.607963871 | D161: 8.963813533 | E161: -0.8956239251 | F161: 0.444812078 | G161: 1.71649914 | H161: -0.9878384938 | I161: 0.1554834725 | J161: 10.06740284 | K161: 0.9846027916 | L161: 0.1748065866 | M161: 2.57474871 | N161: -2.574254548 | O161: -0.05044245333
A162: 138 | B162: 2.535221884 | C162: 8.670795724 | D162: 9.000283705 | E162: -0.9112471453 | F162: 0.4118599764 | G162: 1.728997716 | H162: -0.9897336065 | I162: 0.1429244143 | J162: 10.14088754 | K162: 0.9843777837 | L162: 0.1760692446 | M162: 2.593496574 | N162: -2.592034796 | O162: -0.08706375863
A163: 139 | B163: 2.553593057 | C163: 8.733627577 | D163: 9.036502112 | E163: -0.9255631869 | F163: 0.3785931682 | G163: 1.74045055 | H163: -0.9914462594 | I163: 0.1305155731 | J163: 10.21437223 | K163: 0.9841511566 | L163: 0.177331613 | M163: 2.610675824 | N163: -2.607745393 | O163: -0.1236617411
A164: 140 | B164: 2.57196423 | C164: 8.79645943 | D164: 9.07249363 | E164: -0.9385869705 | F164: 0.3450427494 | G164: 1.750869576 | H164: -0.9929848539 | I164: 0.1182416169 | J164: 10.28785692 | K164: 0.9839229106 | L164: 0.1785936897 | M164: 2.626304365 | N164: -2.62141354 | O164: -0.1602050733
A165: 141 | B165: 2.590335403 | C165: 8.859291283 | D165: 9.108282037 | E165: -0.9503318535 | F165: 0.3112384427 | G165: 1.760265483 | H165: -0.9943567437 | I165: 0.106088012 | J165: 10.36134161 | K165: 0.9836930461 | L165: 0.1798554727 | M165: 2.640398224 | N165: -2.633064053 | O165: -0.1966633616
A166: 142 | B166: 2.608706576 | C166: 8.922123136 | D166: 9.143890153 | E166: -0.960809709 | F166: 0.2772087716 | G166: 1.768647767 | H166: -0.9955683329 | I166: 0.09404091987 | J166: 10.4348263 | K166: 0.9834615635 | L166: 0.1811169597 | M166: 2.652971651 | N166: -2.642719493 | O166: -0.233006997
A167: 143 | B167: 2.627077749 | C167: 8.984954989 | D167: 9.179339964 | E167: -0.970030993 | F167: 0.2429812185 | G167: 1.776024794 | H167: -0.9966251589 | I167: 0.08208710348 | J167: 10.508311 | K167: 0.9832284632 | L167: 0.1823781489 | M167: 2.664037192 | N167: -2.650400298 | O167: -0.2692070189
A168: 144 | B168: 2.645448922 | C168: 9.047786842 | D168: 9.214652738 | E168: -0.9780048032 | F168: 0.2085823698 | G168: 1.782403843 | H168: -0.9975319626 | I168: 0.07021384205 | J168: 10.58179569 | K168: 0.9829937455 | L168: 0.183639038 | M168: 2.673605764 | N168: -2.656124881 | O168: -0.3052349891
A169: 145 | B169: 2.663820095 | C169: 9.110618695 | D169: 9.249849135 | E169: -0.9847389285 | F169: 0.1740380498 | G169: 1.787791143 | H169: -0.9982927456 | I169: 0.05840885289 | J169: 10.65528038 | K169: 0.9827574109 | L169: 0.1848996251 | M169: 2.681686714 | N169: -2.659909726 | O169: -0.3410628733
A170: 146 | B170: 2.682191268 | C170: 9.173450548 | D170: 9.284949305 | E170: -0.9902398915 | F170: 0.1393734452 | G170: 1.792191913 | H170: -0.9989108188 | I170: 0.04666021897 | J170: 10.72876507 | K170: 0.9825194597 | L170: 0.186159908 | M170: 2.68828787 | N170: -2.661769469 | O170: -0.3766629305
A171: 147 | B171: 2.700562441 | C171: 9.236282402 | D171: 9.319972979 | E171: -0.9945129832 | F171: 0.1046132223 | G171: 1.795610387 | H171: -0.999388841 | I171: 0.03495632117 | J171: 10.80224977 | K171: 0.9822798923 | L171: 0.1874198848 | M171: 2.69341558 | N171: -2.661716968 | O171: -0.4120076065
A172: 148 | B172: 2.718933614 | C172: 9.299114255 | D172: 9.354939565 | E172: -0.9975622903 | F172: 0.06978163797 | G172: 1.798049832 | H172: -0.9997288496 | I172: 0.02328577441 | J172: 10.87573446 | K172: 0.9820387091 | L172: 0.1886795532 | M172: 2.697074748 | N172: -2.659763358 | O172: -0.4470694319
A173: 149 | B173: 2.737304788 | C173: 9.361946108 | D173: 9.389868225 | E173: -0.999390717 | F173: 0.03490264601 | G173: 1.799512574 | H173: -0.9999322836 | I173: 0.01163736665 | J173: 10.94921915 | K173: 0.9817959106 | L173: 0.1899389112 | M173: 2.69926886 | N173: -2.655918105 | O173: -0.4818209229
A174: 150 | B174: 2.755675961 | C174: 9.424777961 | D174: 9.424777961 | E174: -1 | F174: 3.675445365e-16 | G174: 1.8 | H174: -1 | I174: 1.225148455e-16 | J174: 11.02270384 | K174: 0.981551497 | L174: 0.1911979568 | M174: 2.7 | N174: -2.650189042 | O174: -0.5162344835
A175: 151 | B175: 2.774047134 | C175: 9.487609814 | D175: 9.459687697 | E175: -0.999390717 | F175: -0.03490264601 | G175: 1.799512574 | H175: -0.9999322836 | I175: -0.01163736665 | J175: 11.09618853 | K175: 0.9813054689 | L175: 0.1924566879 | M175: 2.69926886 | N175: -2.642582404 | O175: -0.5502823082
A176: 152 | B176: 2.792418307 | C176: 9.550441667 | D176: 9.494616357 | E176: -0.9975622903 | F176: -0.06978163797 | G176: 1.798049832 | H176: -0.9997288496 | I176: -0.02328577441 | J176: 11.16967323 | K176: 0.9810578266 | L176: 0.1937151025 | M176: 2.697074748 | N176: -2.633102849 | O176: -0.5839362848
A177: 153 | B177: 2.81078948 | C177: 9.61327352 | D177: 9.529582942 | E177: -0.9945129832 | F177: -0.1046132223 | G177: 1.795610387 | H177: -0.999388841 | I177: -0.03495632117 | J177: 11.24315792 | K177: 0.9808085705 | L177: 0.1949731984 | M177: 2.69341558 | N177: -2.621753474 | O177: -0.6171678942
A178: 154 | B178: 2.829160653 | C178: 9.676105373 | D178: 9.564606617 | E178: -0.9902398915 | F178: -0.1393734452 | G178: 1.792191913 | H178: -0.9989108188 | I178: -0.04666021897 | J178: 11.31664261 | K178: 0.980557701 | L178: 0.1962309735 | M178: 2.68828787 | N178: -2.60853582 | O178: -0.6499481096
A179: 155 | B179: 2.847531826 | C179: 9.738937226 | D179: 9.599706786 | E179: -0.9847389285 | F179: -0.1740380498 | G179: 1.787791143 | H179: -0.9982927456 | I179: -0.05840885289 | J179: 11.3901273 | K179: 0.9803052186 | L179: 0.1974884259 | M179: 2.681686714 | N179: -2.593449878 | O179: -0.68224729
A180: 156 | B180: 2.865902999 | C180: 9.801769079 | D180: 9.634903183 | E180: -0.9780048032 | F180: -0.2085823698 | G180: 1.782403843 | H180: -0.9975319626 | I180: -0.07021384205 | J180: 11.463612 | K180: 0.9800511237 | L180: 0.1987455534 | M180: 2.673605764 | N180: -2.576494071 | O180: -0.7140350701
A181: 157 | B181: 2.884274172 | C181: 9.864600932 | D181: 9.670215957 | E181: -0.970030993 | F181: -0.2429812185 | G181: 1.776024794 | H181: -0.9966251589 | I181: -0.08208710348 | J181: 11.53709669 | K181: 0.9797954166 | L181: 0.200002354 | M181: 2.664037192 | N181: -2.557665247 | O181: -0.7452802437
A182: 158 | B182: 2.902645345 | C182: 9.927432785 | D182: 9.705665768 | E182: -0.960809709 | F182: -0.2772087716 | G182: 1.768647767 | H182: -0.9955683329 | I182: -0.09404091987 | J182: 11.61058138 | K182: 0.9795380978 | L182: 0.2012588256 | M182: 2.652971651 | N182: -2.536958649 | O182: -0.7759506388
A183: 159 | B183: 2.921016518 | C183: 9.990264638 | D183: 9.741273884 | E183: -0.9503318535 | F183: -0.3112384427 | G183: 1.760265483 | H183: -0.9943567437 | I183: -0.106088012 | J183: 11.68406607 | K183: 0.9792791678 | L183: 0.2025149662 | M183: 2.640398224 | N183: -2.514367883 | O183: -0.8060129849
A184: 160 | B184: 2.939387691 | C184: 10.05309649 | D184: 9.777062292 | E184: -0.9385869705 | F184: -0.3450427494 | G184: 1.750869576 | H184: -0.9929848539 | I184: -0.1182416169 | J184: 11.75755077 | K184: 0.9790186269 | L184: 0.2037707736 | M184: 2.626304365 | N184: -2.489884878 | O184: -0.8354327687
A185: 161 | B185: 2.957758864 | C185: 10.11592834 | D185: 9.81305381 | E185: -0.9255631869 | F185: -0.3785931682 | G185: 1.74045055 | H185: -0.9914462594 | I185: -0.1305155731 | J185: 11.83103546 | K185: 0.9787564756 | L185: 0.2050262458 | M185: 2.610675824 | N185: -2.463499833 | O185: -0.8641740767
A186: 162 | B186: 2.976130037 | C186: 10.1787602 | D186: 9.849272217 | E186: -0.9112471453 | F186: -0.4118599764 | G186: 1.728997716 | H186: -0.9897336065 | I186: -0.1429244143 | J186: 11.90452015 | K186: 0.9784927143 | L186: 0.2062813808 | M186: 2.593496574 | N186: -2.435201156 | O186: -0.8921994236
A187: 163 | B187: 2.994501211 | C187: 10.24159205 | D187: 9.885742388 | E187: -0.8956239251 | F187: -0.444812078 | G187: 1.71649914 | H187: -0.9878384938 | I187: -0.1554834725 | J187: 11.97800484 | K187: 0.9782273434 | L187: 0.2075361765 | M187: 2.57474871 | N187: -2.404975393 | O187: -0.9194695629
A188: 164 | B188: 3.012872384 | C188: 10.3044239 | D188: 9.922490455 | E188: -0.8786769535 | F188: -0.4774168109 | G188: 1.702941563 | H188: -0.9857513553 | I188: -0.1682089937 | J188: 12.05148953 | K188: 0.9779603635 | L188: 0.2087906307 | M188: 2.554412344 | N188: -2.372807144 | O188: -0.945943276
A189: 165 | B189: 3.031243557 | C189: 10.36725576 | D189: 9.959543971 | E189: -0.8603879031 | F189: -0.5096397318 | G189: 1.688310322 | H189: -0.9834613228 | I189: -0.1811182666 | J189: 12.12497423 | K189: 0.9776917748 | L189: 0.2100447416 | M189: 2.532465484 | N189: -2.338678963 | O189: -0.9715771385
A190: 166 | B190: 3.04961473 | C190: 10.43008761 | D190: 9.99693211 | E190: -0.8407365749 | F190: -0.5414443753 | G190: 1.67258926 | H190: -0.9809560627 | I190: -0.1942297688 | J190: 12.19845892 | K190: 0.9774215779 | L190: 0.2112985069 | M190: 2.50888389 | N190: -2.302571249 | O190: -0.9963252568
A191: 167 | B191: 3.067985903 | C191: 10.49291946 | D191: 10.03468588 | E191: -0.8197007659 | F191: =SIN(D191) -> -0.5727919818 | G191: =1-$C$6*E191 -> 1.655760613 | H191: =(E191-$C$6)/G191 -> -0.9782215819 | I191: =C$14*F191/G191 -> -0.2075633316 | J191: =$C$7+$C$8*B191 -> 12.27194361 | K191: 0.9771497732 | L191: =SIN(RADIANS(J191)) -> 0.2125519246 | M191: =C$5*G191 -> 2.483640919 | N191: =M191*(H191*K191-I191*L191) -> -2.26446212 | O191: =M191*(I191*K191+H191*L191) -> -1.020138972
A192: 168 | B192: 3.086357076 | C192: 10.55575132 | D192: 10.07283837 | E192: -0.797256117 | F192: -0.6036411881 | G192: 1.637804894 | H192: -0.9752419981 | I192: -0.2211403289 | J192: 12.3454283 | K192: 0.9768763612 | L192: 0.2138049928 | M192: 2.45670734 | N192: -2.224327265 | O192: -1.042966525
A193: 169 | B193: 3.104728249 | C193: 10.61858317 | D193: 10.11142503 | E193: -0.7733759411 | F193: -0.6339476743 | G193: 1.618700753 | H193: -0.9719992644 | I193: -0.234983893 | J193: 12.418913 | K193: 0.9766013423 | L193: 0.2150577092 | M193: 2.428051129 | N193: -2.182139783 | O193: -1.064752673
A194: 170 | B194: 3.123099422 | C194: 10.68141502 | D194: 10.15048402 | E194: -0.7480310257 | F194: -0.6636637587 | G194: 1.598424821 | H194: -0.9684728401 | I194: -0.2491191641 | J194: 12.49239769 | K194: 0.9763247169 | L194: 0.2163100718 | M194: 2.397637231 | N194: -2.13786999 | O194: -1.085438252
A195: 171 | B195: 3.141470595 | C195: 10.74424688 | D195: 10.19005653 | E195: -0.7211894082 | F195: -0.6927379284 | G195: 1.576951527 | H195: -0.9646392946 | I195: -0.2635735786 | J195: 12.56588238 | K195: 0.9760464855 | L195: 0.2175620787 | M195: 2.36542729 | N195: -2.09148521 | O195: -1.104959673
A196: 172 | B196: 3.159841768 | C196: 10.80707873 | D196: 10.23018729 | E196: -0.6928161182 | F196: -0.7211142949 | G196: 1.554252895 | H196: -0.9604718276 | I196: -0.2783772052 | J196: 12.63936707 | K196: 0.9757666486 | L196: 0.2188137277 | M196: 2.331379342 | N196: -2.042949535 | O196: -1.12324834
A197: 173 | B197: 3.178212941 | C197: 10.86991058 | D197: 10.27092502 | E197: -0.6628728817 | F197: -0.7487319565 | G197: 1.530298305 | H197: -0.9559396861 | I197: -0.2935631389 | J197: 12.71285177 | K197: 0.9754852067 | L197: 0.2200650167 | M197: 2.295447458 | N197: -1.992223544 | O197: -1.14022997
A198: 174 | B198: 3.196584114 | C198: 10.93274243 | D198: 10.31232304 | E198: -0.6313177808 | F198: -0.7755242483 | G198: 1.505054225 | H198: -0.9510074503 | I198: -0.3091679631 | J198: 12.78633646 | K198: 0.9752021601 | L198: 0.2213159437 | M198: 2.257581337 | N198: -1.939263995 | O198: -1.155823798
A199: 175 | B199: 3.214955287 | C199: 10.99557429 | D199: 10.35444 | E199: -0.5981048604 | F199: -0.8014178535 | G199: 1.478483888 | H199: -0.9456341536 | I199: -0.3252322977 | J199: 12.85982115 | K199: 0.9749175094 | L199: 0.2225665067 | M199: 2.217725833 | N199: -1.884023468 | O199: -1.16994164
A200: 176 | B200: 3.23332646 | C200: 11.05840614 | D200: 10.39734075 | E200: -0.5631836725 | F200: -0.8263317439 | G200: 1.450546938 | H200: -0.9397721899 | I200: -0.3418014497 | J200: 12.93330584 | K200: 0.974631255 | L200: 0.2238167036 | M200: 2.175820407 | N200: -1.826449958 | O200: -1.182486784
A201: 177 | B201: 3.251697634 | C201: 11.12123799 | D201: 10.44109727 | E201: -0.5264987459 | F201: -0.8501759057 | G201: 1.421198997 | H201: -0.9333659459 | I201: -0.3589261916 | J201: 13.00679053 | K201: 0.9743433974 | L201: 0.2250665324 | M201: 2.131798495 | N201: -1.766486413 | O201: -1.193352662
A202: 178 | B202: 3.270068807 | C202: 11.18406985 | D202: 10.48579001 | E202: -0.487988966 | F202: -0.8728497975 | G202: 1.390391173 | H202: -0.9263500741 | I202: -0.3766636963 | J202: 13.08027523 | K202: 0.974053937 | L202: 0.2263159909 | M202: 2.085586759 | N202: -1.704070205 | O202: -1.202421252
A203: 179 | B203: 3.28843998 | C203: 11.2469017 | D203: 10.53150933 | E203: -0.447586848 | F203: -0.8942404674 | G203: 1.358069478 | H203: -0.9186472915 | I203: -0.3950786679 | J203: 13.15375992 | K203: 0.9737628745 | L203: 0.2275650771 | M203: 2.037104218 | N203: -1.639132522 | O203: -1.209561147
A204: 180 | B204: 3.306811153 | C204: 11.30973355 | D204: 10.57835737 | E204: -0.4052176781 | F204: -0.9142202324 | G204: 1.324174143 | H204: -0.9101655435 | I204: -0.4142447144 | J204: 13.22724461 | K204: 0.9734702101 | L204: 0.228813789 | M204: 1.986261214 | N204: -1.571597684 | O204: -1.214625181
A205: 181 | B205: 3.325182326 | C205: 11.37256541 | D205: 10.62645037 | E205: -0.3607984964 | F205: -0.9326437932 | G205: 1.288638797 | H205: -0.9007943102 | I205: -0.4342460255 | J205: 13.3007293 | K205: 0.9731759445 | L205: 0.2300621245 | M205: 1.932958196 | N205: -1.501382348 | O205: -1.217447506
A206: 182 | B206: 3.343553499 | C206: 11.43539726 | D206: 10.67592157 | E206: -0.3142368846 | F206: -0.9493446057 | G206: 1.251389508 | H206: -0.8903997339 | I206: -0.4551794305 | J206: 13.374214 | K206: 0.972880078 | L206: 0.2313100816 | M206: 1.877084262 | N206: -1.42839462 | O206: -1.217839946
... 818 more rows

Sheet Ark3
